Workbook

Sheet LevelBattleConfig
A1: ID | C1: levelName | D1: MonsterWavesConfigId | E1: monsterLv | F1: monsterStar | G1: miniExpAndGold | H1: eliteExpAndGold | I1: bossExpAndGold | J1: miniMonsterItem | K1: eliteMonsterItem | L1: BossMonsterWavesId | M1: bossLv | N1: bossStar | O1: bossMonsterId | P1: bossItem | Q1: exp
A2: int | C2: string | D2: int[] | E2: int | F2: int | G2: int[] | H2: int | I2: int | J2: string[] | K2: string[] | L2: int | M2: int | N2: int | O2: int | P2: string[] | Q2: int
A4: ID | B4: 描述 | C4: 关卡名 | D4: 这个节点内可以刷的怪物组 | E4: 等级 | F4: 星级 | G4: 小怪经验和金币产出 | H4: 精英经验和金币产出 | I4: boss经验和金币产出 | J4: 打死小怪可以获得的奖励 | K4: 杀死精英怪可以获得的奖励 | L4: 大boss的时候使用的波ID | M4: boss等级 | N4: boss星级 | O4: boss怪物ID | P4: 打死boss可以获得的奖励 | Q4: 获得多少经验杀boss
A5: 1 | C5: 1-1 | D5: 1;1 | E5: 1 | F5: 1 | G5: 2 | H5: 2 | I5: 24 | J5: 10007,10011,10014 | K5: 10005,10012,10014 | L5: 0 | M5: 1 | N5: 1 | O5: 9000110 | P5: 10006,10013,10014 | Q5: 60
A6: 2 | C6: 1-2 | D6: 2;2 | E6: =M5 -> 1 | F6: 3 | G6: 2 | H6: 2 | I6: 32 | J6: 10007,10011,10014 | K6: 10005,10012,10014 | L6: 0 | M6: 8 | N6: 3 | O6: 9000110 | P6: 10006,10013,10014 | Q6: 80
A7: 3 | C7: 1-3 | D7: 3;4 | E7: =M6 -> 8 | F7: 3 | G7: 12 | H7: 12 | I7: 44 | J7: 10007,10011,10014 | K7: 10005,10012,10014 | L7: 0 | M7: 12 | N7: 3 | O7: 9000103 | P7: 10006,10013,10014 | Q7: 100
A8: 4 | C8: 1-4 | D8: 3;5 | E8: 12 | F8: 3 | G8: 12 | H8: 12 | I8: 58 | J8: 10007,10011,10014 | K8: 10005,10012,10014 | L8: 0 | M8: 16 | N8: 3 | O8: 9000106 | P8: 10006,10013,10014 | Q8: 100
A9: 5 | C9: 1-5 | D9: 3;6 | E9: 16 | F9: 3 | G9: 12 | H9: 12 | I9: 78 | J9: 10007,10011,10014 | K9: 10005,10012,10014 | L9: 0 | M9: 20 | N9: 3 | O9: 9000103 | P9: 10006,10013,10014 | Q9: 100
A10: 6 | C10: 1-6 | D10: 3;7 | E10: 20 | F10: 3 | G10: 12 | H10: 12 | I10: 104 | J10: 10007,10011,10014 | K10: 10005,10012,10014 | L10: 0 | M10: 24 | N10: 3 | O10: 9000106 | P10: 10006,10013,10014 | Q10: 100
A11: 7 | C11: 1-7 | D11: 3;8 | E11: 24 | F11: 3 | G11: 12 | H11: 12 | I11: 138 | J11: 10007,10011,10014 | K11: 10005,10012,10014 | L11: 0 | M11: 28 | N11: 3 | O11: 9000103 | P11: 10006,10013,10014 | Q11: 100
A12: 8 | C12: 1-8 | D12: 3;9 | E12: 28 | F12: 3 | G12: 22 | H12: 22 | I12: 184 | J12: 10007,10011,10014 | K12: 10005,10012,10014 | L12: 0 | M12: 32 | N12: 3 | O12: 9000106 | P12: 10006,10013,10014 | Q12: 100
A13: 9 | C13: 1-9 | D13: 3;10 | E13: 32 | F13: 3 | G13: 22 | H13: 22 | I13: 244 | J13: 10007,10011,10014 | K13: 10005,10012,10014 | L13: 0 | M13: 35 | N13: 3 | O13: 9000103 | P13: 10006,10013,10014 | Q13: 100
A14: 10 | C14: 1-10 | D14: 3;11 | E14: 35 | F14: 4 | G14: 22 | H14: 22 | I14: 326 | J14: 10007,10011,10014 | K14: 10005,10012,10014 | L14: 0 | M14: 39 | N14: 4 | O14: 9000106 | P14: 10006,10013,10014 | Q14: 110
A15: 11 | C15: 1-11 | D15: 3;12 | E15: 39 | F15: 4 | G15: 22 | H15: 22 | I15: 434 | J15: 10007,10011,10014 | K15: 10005,10012,10014 | L15: 0 | M15: 42 | N15: 4 | O15: 9000103 | P15: 10006,10013,10014 | Q15: 110
A16: 12 | C16: 1-12 | D16: 3;13 | E16: 42 | F16: 4 | G16: 22 | H16: 22 | I16: 576 | J16: 10007,10011,10014 | K16: 10005,10012,10014 | L16: 0 | M16: 45 | N16: 4 | O16: 9000106 | P16: 10006,10013,10014 | Q16: 110
A17: 13 | C17: 1-13 | D17: 3;14 | E17: 45 | F17: 4 | G17: 32 | H17: 32 | I17: 764 | J17: 10007,10011,10014 | K17: 10005,10012,10014 | L17: 0 | M17: 48 | N17: 4 | O17: 9000103 | P17: 10006,10013,10014 | Q17: 110
A18: 14 | C18: 1-14 | D18: 3;15 | E18: 48 | F18: 4 | G18: 32 | H18: 32 | I18: 1010 | J18: 10007,10011,10014 | K18: 10005,10012,10014 | L18: 0 | M18: 51 | N18: 4 | O18: 9000106 | P18: 10006,10013,10014 | Q18: 110
A19: 15 | C19: 1-15 | D19: 3;16 | E19: 51 | F19: 4 | G19: 32 | H19: 32 | I19: 1332 | J19: 10007,10011,10014 | K19: 10005,10012,10014 | L19: 0 | M19: 54 | N19: 4 | O19: 9000103 | P19: 10006,10013,10014 | Q19: 110
A20: 16 | C20: 1-16 | D20: 3;17 | E20: 54 | F20: 4 | G20: 32 | H20: 32 | I20: 1754 | J20: 10007,10011,10014 | K20: 10005,10012,10014 | L20: 0 | M20: 57 | N20: 4 | O20: 9000106 | P20: 10006,10013,10014 | Q20: 110
A21: 17 | C21: 1-17 | D21: 3;18 | E21: 57 | F21: 4 | G21: 32 | H21: 32 | I21: 2306 | J21: 10007,10011,10014 | K21: 10005,10012,10014 | L21: 0 | M21: 60 | N21: 4 | O21: 9000103 | P21: 10006,10013,10014 | Q21: 110
A22: 18 | C22: 1-18 | D22: 3;19 | E22: 60 | F22: 4 | G22: 42 | H22: 42 | I22: 3026 | J22: 10007,10011,10014 | K22: 10005,10012,10014 | L22: 0 | M22: 63 | N22: 4 | O22: 9000106 | P22: 10006,10013,10014 | Q22: 110
A23: 19 | C23: 1-19 | D23: 3;20 | E23: 63 | F23: 5 | G23: 42 | H23: 42 | I23: 3962 | J23: 10007,10011,10014 | K23: 10005,10012,10014 | L23: 0 | M23: 66 | N23: 4 | O23: 9000103 | P23: 10006,10013,10014 | Q23: 110
A24: 20 | C24: 1-20 | D24: 3;21 | E24: 66 | F24: 5 | G24: 42 | H24: 42 | I24: 5176 | J24: 10007,10011,10014 | K24: 10005,10012,10014 | L24: 0 | M24: 68 | N24: 4 | O24: 9000106 | P24: 10006,10013,10014 | Q24: 110
A25: 21 | C25: 1-21 | D25: 3;22 | E25: 68 | F25: 5 | G25: 42 | H25: 42 | I25: 6750 | J25: 10007,10011,10014 | K25: 10005,10012,10014 | L25: 0 | M25: 70 | N25: 4 | O25: 9000103 | P25: 10006,10013,10014 | Q25: 110
A26: 22 | C26: 1-22 | D26: 3;23 | E26: 70 | F26: 5 | G26: 42 | H26: 42 | I26: 8784 | J26: 10007,10011,10014 | K26: 10005,10012,10014 | L26: 0 | M26: 72 | N26: 4 | O26: 9000106 | P26: 10006,10013,10014 | Q26: 110
A27: 23 | C27: 1-23 | D27: 3;24 | E27: 72 | F27: 5 | G27: 51 | H27: 51 | I27: 11390 | J27: 10007,10011,10014 | K27: 10005,10012,10014 | L27: 0 | M27: 74 | N27: 4 | O27: 9000103 | P27: 10006,10013,10014 | Q27: 110
A28: 24 | C28: 1-24 | D28: 3;25 | E28: 74 | F28: 5 | G28: 51 | H28: 51 | I28: 14710 | J28: 10007,10011,10014 | K28: 10005,10012,10014 | L28: 0 | M28: 76 | N28: 4 | O28: 9000106 | P28: 10006,10013,10014 | Q28: 110
A29: 25 | C29: 1-25 | D29: 3;26 | E29: 76 | F29: 5 | G29: 51 | H29: 51 | I29: 18922 | J29: 10007,10011,10014 | K29: 10005,10012,10014 | L29: 0 | M29: 78 | N29: 4 | O29: 9000103 | P29: 10006,10013,10014 | Q29: 110
A30: 26 | C30: 1-26 | D30: 3;27 | E30: 78 | F30: 5 | G30: 51 | H30: 51 | I30: 24242 | J30: 10007,10011,10014 | K30: 10005,10012,10014 | L30: 0 | M30: 80 | N30: 4 | O30: 9000106 | P30: 10006,10013,10014 | Q30: 130
A31: 27 | C31: 1-27 | D31: 3;28 | E31: 80 | F31: 5 | G31: 51 | H31: 51 | I31: 30934 | J31: 10007,10011,10014 | K31: 10005,10012,10014 | L31: 0 | M31: 82 | N31: 4 | O31: 9000103 | P31: 10006,10013,10014 | Q31: 130
A32: 28 | C32: 1-28 | D32: 3;29 | E32: 82 | F32: 5 | G32: 61 | H32: 61 | I32: 39318 | J32: 10007,10011,10014 | K32: 10005,10012,10014 | L32: 0 | M32: 84 | N32: 4 | O32: 9000106 | P32: 10006,10013,10014 | Q32: 130
A33: 29 | C33: 1-29 | D33: 3;30 | E33: 84 | F33: 5 | G33: 61 | H33: 61 | I33: 49774 | J33: 10007,10011,10014 | K33: 10005,10012,10014 | L33: 0 | M33: 86 | N33: 4 | O33: 9000103 | P33: 10006,10013,10014 | Q33: 130
A34: 30 | C34: 1-30 | D34: 3;31 | E34: 86 | F34: 5 | G34: 61 | H34: 61 | I34: 62758 | J34: 10007,10011,10014 | K34: 10005,10012,10014 | L34: 0 | M34: 88 | N34: 4 | O34: 9000106 | P34: 10006,10013,10014 | Q34: 130
A35: 31 | C35: 1-31 | D35: 3;32 | E35: 88 | F35: 6 | G35: 61 | H35: 61 | I35: 78814 | J35: 10007,10011,10014 | K35: 10005,10012,10014 | L35: 0 | M35: 90 | N35: 4 | O35: 9000103 | P35: 10006,10013,10014 | Q35: 130
A36: 32 | C36: 1-32 | D36: 3;33 | E36: 90 | F36: 6 | G36: 61 | H36: 61 | I36: 98584 | J36: 10007,10011,10014 | K36: 10005,10012,10014 | L36: 0 | M36: 92 | N36: 4 | O36: 9000106 | P36: 10006,10013,10014 | Q36: 130
A37: 33 | C37: 1-33 | D37: 3;34 | E37: 92 | F37: 6 | G37: 71 | H37: 71 | I37: 122820 | J37: 10007,10011,10014 | K37: 10005,10012,10014 | L37: 0 | M37: 94 | N37: 4 | O37: 9000103 | P37: 10006,10013,10014 | Q37: 130
A38: 34 | C38: 1-34 | D38: 3;35 | E38: 94 | F38: 6 | G38: 71 | H38: 71 | I38: 152402 | J38: 10007,10011,10014 | K38: 10005,10012,10014 | L38: 0 | M38: 96 | N38: 4 | O38: 9000106 | P38: 10006,10013,10014 | Q38: 130
A39: 35 | C39: 1-35 | D39: 3;36 | E39: =M38 -> 96 | F39: 6 | G39: 71 | H39: 71 | I39: 188354 | J39: 10007,10011,10014 | K39: 10005,10012,10014 | L39: 0 | M39: 98 | N39: 4 | O39: 9000103 | P39: 10006,10013,10014 | Q39: 130
A40: 36 | C40: 1-36 | D40: 3;37 | E40: 98 | F40: 6 | G40: 71 | H40: 71 | I40: 231858 | J40: 10007,10011,10014 | K40: 10005,10012,10014 | L40: 0 | M40: 99 | N40: 4 | O40: 9000106 | P40: 10006,10013,10014 | Q40: 130
A41: 37 | C41: 1-37 | D41: 3;38 | E41: 99 | F41: 6 | G41: 71 | H41: 71 | I41: 284270 | J41: 10007,10011,10014 | K41: 10005,10012,10014 | L41: 0 | M41: 100 | N41: 4 | O41: 9000103 | P41: 10006,10013,10014 | Q41: 130
A42: 38 | C42: 1-38 | D42: 3;39 | E42: 100 | F42: 6 | G42: 81 | H42: 81 | I42: 347138 | J42: 10007,10011,10014 | K42: 10005,10012,10014 | L42: 0 | M42: 101 | N42: 4 | O42: 9000106 | P42: 10006,10013,10014 | Q42: 130
A43: 39 | C43: 1-39 | D43: 3;40 | E43: 101 | F43: 6 | G43: 81 | H43: 81 | I43: 422218 | J43: 10007,10011,10014 | K43: 10005,10012,10014 | L43: 0 | M43: 102 | N43: 4 | O43: 9000103 | P43: 10006,10013,10014 | Q43: 130
A44: 40 | C44: 1-40 | D44: 3;41 | E44: 102 | F44: 6 | G44: 81 | H44: 81 | I44: 511486 | J44: 10007,10011,10014 | K44: 10005,10012,10014 | L44: 0 | M44: 103 | N44: 4 | O44: 9000106 | P44: 10006,10013,10014 | Q44: 130
A45: 41 | C45: 1-41 | D45: 3;42 | E45: 103 | F45: 6 | G45: 81 | H45: 81 | I45: 617152 | J45: 10007,10011,10014 | K45: 10005,10012,10014 | L45: 0 | M45: 104 | N45: 4 | O45: 9000103 | P45: 10006,10013,10014 | Q45: 130
A46: 42 | C46: 1-42 | D46: 3;43 | E46: 104 | F46: 6 | G46: 81 | H46: 81 | I46: 741672 | J46: 10007,10011,10014 | K46: 10005,10012,10014 | L46: 0 | M46: 105 | N46: 4 | O46: 9000106 | P46: 10006,10013,10014 | Q46: 150
A47: 43 | C47: 1-43 | D47: 3;44 | E47: 105 | F47: 6 | G47: 91 | H47: 91 | I47: 887758 | J47: 10007,10011,10014 | K47: 10005,10012,10014 | L47: 0 | M47: 106 | N47: 4 | O47: 9000103 | P47: 10006,10013,10014 | Q47: 150
A48: 44 | C48: 1-44 | D48: 3;45 | E48: 106 | F48: 6 | G48: 91 | H48: 91 | I48: 1058374 | J48: 10007,10011,10014 | K48: 10005,10012,10014 | L48: 0 | M48: 107 | N48: 4 | O48: 9000106 | P48: 10006,10013,10014 | Q48: 150
A49: 45 | C49: 1-45 | D49: 3;46 | E49: 107 | F49: 6 | G49: 91 | H49: 91 | I49: 1256740 | J49: 10007,10011,10014 | K49: 10005,10012,10014 | L49: 0 | M49: 108 | N49: 4 | O49: 9000103 | P49: 10006,10013,10014 | Q49: 150
A50: 46 | C50: 1-46 | D50: 3;47 | E50: 108 | F50: 6 | G50: 91 | H50: 91 | I50: 1486324 | J50: 10007,10011,10014 | K50: 10005,10012,10014 | L50: 0 | M50: 109 | N50: 4 | O50: 9000106 | P50: 10006,10013,10014 | Q50: 150
A51: 47 | C51: 1-47 | D51: 3;48 | E51: 109 | F51: 6 | G51: 91 | H51: 91 | I51: 1750830 | J51: 10007,10011,10014 | K51: 10005,10012,10014 | L51: 0 | M51: 110 | N51: 4 | O51: 9000103 | P51: 10006,10013,10014 | Q51: 150
A52: 48 | C52: 1-48 | D52: 3;49 | E52: 110 | F52: 6 | G52: 101 | H52: 101 | I52: 2054168 | J52: 10007,10011,10014 | K52: 10005,10012,10014 | L52: 0 | M52: 111 | N52: 4 | O52: 9000106 | P52: 10006,10013,10014 | Q52: 150
A53: 49 | C53: 1-49 | D53: 3;50 | E53: 111 | F53: 6 | G53: 101 | H53: 101 | I53: 2400436 | J53: 10007,10011,10014 | K53: 10005,10012,10014 | L53: 0 | M53: 112 | N53: 4 | O53: 9000103 | P53: 10006,10013,10014 | Q53: 150
A54: 50 | C54: 1-50 | D54: 3;51 | E54: 112 | F54: 6 | G54: 101 | H54: 101 | I54: 2793870 | J54: 10007,10011,10014 | K54: 10005,10012,10014 | L54: 0 | M54: 113 | N54: 4 | O54: 9000106 | P54: 10006,10013,10014 | Q54: 150
A55: 51 | C55: 1-51 | D55: 3;52 | E55: 113 | F55: 6 | G55: 101 | H55: 101 | I55: 3238800 | J55: 10007,10011,10014 | K55: 10005,10012,10014 | L55: 0 | M55: 114 | N55: 4 | O55: 9000103 | P55: 10006,10013,10014 | Q55: 150
A56: 52 | C56: 1-52 | D56: 3;53 | E56: 114 | F56: 6 | G56: 101 | H56: 101 | I56: 3739590 | J56: 10007,10011,10014 | K56: 10005,10012,10014 | L56: 0 | M56: 115 | N56: 4 | O56: 9000106 | P56: 10006,10013,10014 | Q56: 150
A57: 53 | C57: 1-53 | D57: 3;54 | E57: 115 | F57: 6 | G57: 111 | H57: 111 | I57: 4300568 | J57: 10007,10011,10014 | K57: 10005,10012,10014 | L57: 0 | M57: 116 | N57: 4 | O57: 9000103 | P57: 10006,10013,10014 | Q57: 150
A58: 54 | C58: 1-54 | D58: 3;55 | E58: 116 | F58: 6 | G58: 111 | H58: 111 | I58: 4925946 | J58: 10007,10011,10014 | K58: 10005,10012,10014 | L58: 0 | M58: 117 | N58: 4 | O58: 9000106 | P58: 10006,10013,10014 | Q58: 150
A59: 55 | C59: 1-55 | D59: 3;56 | E59: 117 | F59: 6 | G59: 111 | H59: 111 | I59: 5619730 | J59: 10007,10011,10014 | K59: 10005,10012,10014 | L59: 0 | M59: 118 | N59: 4 | O59: 9000103 | P59: 10006,10013,10014 | Q59: 150
A60: 56 | C60: 1-56 | D60: 3;57 | E60: 118 | F60: 6 | G60: 111 | H60: 111 | I60: 6385622 | J60: 10007,10011,10014 | K60: 10005,10012,10014 | L60: 0 | M60: 119 | N60: 4 | O60: 9000106 | P60: 10006,10013,10014 | Q60: 150
A61: 57 | C61: 1-57 | D61: 3;58 | E61: 119 | F61: 6 | G61: 111 | H61: 111 | I61: 7226914 | J61: 10007,10011,10014 | K61: 10005,10012,10014 | L61: 0 | M61: 120 | N61: 4 | O61: 9000103 | P61: 10006,10013,10014 | Q61: 150
A62: 58 | C62: 1-58 | D62: 3;59 | E62: 120 | F62: 6 | G62: 121 | H62: 121 | I62: 8146376 | J62: 10007,10011,10014 | K62: 10005,10012,10014 | L62: 0 | M62: 121 | N62: 4 | O62: 9000103 | P62: 10006,10013,10014 | Q62: 150
A63: 59 | C63: 1-59 | D63: 3;60 | E63: 121 | F63: 6 | G63: 121 | H63: 121 | I63: 9146144 | J63: 10007,10011,10014 | K63: 10005,10012,10014 | L63: 0 | M63: 122 | N63: 4 | O63: 9000103 | P63: 10006,10013,10014 | Q63: 150
A64: 60 | C64: 1-60 | D64: 3;61 | E64: 122 | F64: 6 | G64: 121 | H64: 121 | I64: 10227596 | J64: 10007,10011,10014 | K64: 10005,10012,10014 | L64: 0 | M64: 123 | N64: 4 | O64: 9000103 | P64: 10006,10013,10014 | Q64: 150
A65: 61 | C65: 1-61 | D65: 3;62 | E65: 123 | F65: 6 | G65: 121 | H65: 121 | I65: 11391242 | J65: 10007,10011,10014 | K65: 10005,10012,10014 | L65: 0 | M65: 124 | N65: 4 | O65: 9000103 | P65: 10006,10013,10014 | Q65: 150
A66: 62 | C66: 1-62 | D66: 3;63 | E66: 124 | F66: 6 | G66: 121 | H66: 121 | I66: 12636608 | J66: 10007,10011,10014 | K66: 10005,10012,10014 | L66: 0 | M66: 125 | N66: 4 | O66: 9000103 | P66: 10006,10013,10014 | Q66: 150
A67: 63 | C67: 1-63 | D67: 3;64 | E67: 125 | F67: 6 | G67: 131 | H67: 131 | I67: 13962136 | J67: 10007,10011,10014 | K67: 10005,10012,10014 | L67: 0 | M67: 126 | N67: 4 | O67: 9000103 | P67: 10006,10013,10014 | Q67: 150
A68: 64 | C68: 1-64 | D68: 3;65 | E68: 126 | F68: 6 | G68: 131 | H68: 131 | I68: 15365094 | J68: 10007,10011,10014 | K68: 10005,10012,10014 | L68: 0 | M68: 127 | N68: 4 | O68: 9000103 | P68: 10006,10013,10014 | Q68: 150
A69: 65 | C69: 1-65 | D69: 3;66 | E69: 127 | F69: 6 | G69: 131 | H69: 131 | I69: 16841490 | J69: 10007,10011,10014 | K69: 10005,10012,10014 | L69: 0 | M69: 128 | N69: 4 | O69: 9000103 | P69: 10006,10013,10014 | Q69: 200
A70: 66 | C70: 1-66 | D70: 3;67 | E70: 128 | F70: 7 | G70: 131 | H70: 131 | I70: 18386020 | J70: 10007,10011,10014 | K70: 10005,10012,10014 | L70: 0 | M70: 129 | N70: 4 | O70: 9000103 | P70: 10006,10013,10014 | Q70: 200
A71: 67 | C71: 1-67 | D71: 3;68 | E71: =M70 -> 129 | F71: 7 | G71: 131 | H71: 131 | I71: 19992032 | J71: 10007,10011,10014 | K71: 10005,10012,10014 | L71: 0 | M71: 130 | N71: 4 | O71: 9000103 | P71: 10006,10013,10014 | Q71: 200
A72: 68 | C72: 1-68 | D72: 3;69 | E72: 130 | F72: 7 | G72: 141 | H72: 141 | I72: 21651504 | J72: 10007,10011,10014 | K72: 10005,10012,10014 | L72: 0 | M72: 131 | N72: 5 | O72: 9000103 | P72: 10006,10013,10014 | Q72: 200
A73: 69 | C73: 1-69 | D73: 3;70 | E73: 131 | F73: 7 | G73: 141 | H73: 141 | I73: 23355070 | J73: 10007,10011,10014 | K73: 10005,10012,10014 | L73: 0 | M73: 132 | N73: 5 | O73: 9000103 | P73: 10006,10013,10014 | Q73: 200
A74: 70 | C74: 1-70 | D74: 3;71 | E74: 132 | F74: 7 | G74: 141 | H74: 141 | I74: 25092056 | J74: 10007,10011,10014 | K74: 10005,10012,10014 | L74: 0 | M74: 133 | N74: 5 | O74: 9000103 | P74: 10006,10013,10014 | Q74: 200
A75: 71 | C75: 1-71 | D75: 3;72 | E75: 133 | F75: 7 | G75: 141 | H75: 141 | I75: 26850554 | J75: 10007,10011,10014 | K75: 10005,10012,10014 | L75: 0 | M75: 134 | N75: 5 | O75: 9000103 | P75: 10006,10013,10014 | Q75: 200
A76: 72 | C76: 1-72 | D76: 3;73 | E76: 134 | F76: 7 | G76: 141 | H76: 141 | I76: 28617534 | J76: 10007,10011,10014 | K76: 10005,10012,10014 | L76: 0 | M76: 135 | N76: 5 | O76: 9000103 | P76: 10006,10013,10014 | Q76: 200
A77: 73 | C77: 1-73 | D77: 3;74 | E77: 135 | F77: 7 | G77: 150 | H77: 150 | I77: 30378976 | J77: 10007,10011,10014 | K77: 10005,10012,10014 | L77: 0 | M77: 136 | N77: 5 | O77: 9000103 | P77: 10006,10013,10014 | Q77: 200
A78: 74 | C78: 1-74 | D78: 3;75 | E78: 136 | F78: 7 | G78: 150 | H78: 150 | I78: 32120034 | J78: 10007,10011,10014 | K78: 10005,10012,10014 | L78: 0 | M78: 137 | N78: 5 | O78: 9000103 | P78: 10006,10013,10014 | Q78: 200
A79: 75 | C79: 1-75 | D79: 3;76 | E79: 137 | F79: 7 | G79: 150 | H79: 150 | I79: 33825234 | J79: 10007,10011,10014 | K79: 10005,10012,10014 | L79: 0 | M79: 138 | N79: 5 | O79: 9000103 | P79: 10006,10013,10014 | Q79: 200
A80: 76 | C80: 1-76 | D80: 3;77 | E80: 138 | F80: 7 | G80: 150 | H80: 150 | I80: 35478690 | J80: 10007,10011,10014 | K80: 10005,10012,10014 | L80: 0 | M80: 139 | N80: 5 | O80: 9000103 | P80: 10006,10013,10014 | Q80: 200
A81: 77 | C81: 1-77 | D81: 3;78 | E81: 139 | F81: 7 | G81: 150 | H81: 150 | I81: 37064342 | J81: 10007,10011,10014 | K81: 10005,10012,10014 | L81: 0 | M81: 140 | N81: 5 | O81: 9000103 | P81: 10006,10013,10014 | Q81: 200
A82: 78 | C82: 1-78 | D82: 3;79 | E82: 140 | F82: 7 | G82: 160 | H82: 160 | I82: 38566210 | J82: 10007,10011,10014 | K82: 10005,10012,10014 | L82: 0 | M82: 141 | N82: 5 | O82: 9000103 | P82: 10006,10013,10014 | Q82: 200
A83: 79 | C83: 1-79 | D83: 3;80 | E83: 141 | F83: 7 | G83: 160 | H83: 160 | I83: 39968660 | J83: 10007,10011,10014 | K83: 10005,10012,10014 | L83: 0 | M83: 142 | N83: 5 | O83: 9000103 | P83: 10006,10013,10014 | Q83: 200
A84: 80 | C84: 1-80 | D84: 3;81 | E84: 142 | F84: 7 | G84: 160 | H84: 160 | I84: 41256670 | J84: 10007,10011,10014 | K84: 10005,10012,10014 | L84: 0 | M84: 143 | N84: 5 | O84: 9000103 | P84: 10006,10013,10014 | Q84: 200
A85: 81 | C85: 1-81 | D85: 3;82 | E85: 143 | F85: 7 | G85: 160 | H85: 160 | I85: 42416096 | J85: 10007,10011,10014 | K85: 10005,10012,10014 | L85: 0 | M85: 144 | N85: 5 | O85: 9000103 | P85: 10006,10013,10014 | Q85: 200
A86: 82 | C86: 1-82 | D86: 3;83 | E86: 144 | F86: 7 | G86: 160 | H86: 160 | I86: 43433936 | J86: 10007,10011,10014 | K86: 10005,10012,10014 | L86: 0 | M86: 145 | N86: 5 | O86: 9000103 | P86: 10006,10013,10014 | Q86: 200
A87: 83 | C87: 1-83 | D87: 3;84 | E87: 145 | F87: 7 | G87: 170 | H87: 170 | I87: 44320732 | J87: 10007,10011,10014 | K87: 10005,10012,10014 | L87: 0 | M87: 146 | N87: 5 | O87: 9000103 | P87: 10006,10013,10014 | Q87: 200
A88: 84 | C88: 1-84 | D88: 3;85 | E88: 146 | F88: 7 | G88: 170 | H88: 170 | I88: 45135252 | J88: 10007,10011,10014 | K88: 10005,10012,10014 | L88: 0 | M88: 147 | N88: 5 | O88: 9000103 | P88: 10006,10013,10014 | Q88: 200
A89: 85 | C89: 1-85 | D89: 3;86 | E89: 147 | F89: 7 | G89: 170 | H89: 170 | I89: 45872880 | J89: 10007,10011,10014 | K89: 10005,10012,10014 | L89: 0 | M89: 148 | N89: 5 | O89: 9000103 | P89: 10006,10013,10014 | Q89: 200
A90: 86 | C90: 1-86 | D90: 3;87 | E90: 148 | F90: 7 | G90: 170 | H90: 170 | I90: 46529388 | J90: 10007,10011,10014 | K90: 10005,10012,10014 | L90: 0 | M90: 149 | N90: 5 | O90: 9000103 | P90: 10006,10013,10014 | Q90: 200
A91: 87 | C91: 1-87 | D91: 3;88 | E91: 149 | F91: 7 | G91: 170 | H91: 170 | I91: 47100972 | J91: 10007,10011,10014 | K91: 10005,10012,10014 | L91: 0 | M91: 150 | N91: 5 | O91: 9000103 | P91: 10006,10013,10014 | Q91: 200
A92: 88 | C92: 1-88 | D92: 3;89 | E92: 150 | F92: 7 | G92: 180 | H92: 180 | I92: 47655702 | J92: 10007,10011,10014 | K92: 10005,10012,10014 | L92: 0 | M92: 151 | N92: 5 | O92: 9000103 | P92: 10006,10013,10014 | Q92: 200
A93: 89 | C93: 1-89 | D93: 3;90 | E93: 151 | F93: 8 | G93: 180 | H93: 180 | I93: 48410120 | J93: 10007,10011,10014 | K93: 10005,10012,10014 | L93: 0 | M93: 152 | N93: 5 | O93: 9000103 | P93: 10006,10013,10014 | Q93: 200
A94: 90 | C94: 1-90 | D94: 3;91 | E94: 152 | F94: 8 | G94: 180 | H94: 180 | I94: 49373484 | J94: 10007,10011,10014 | K94: 10005,10012,10014 | L94: 0 | M94: 153 | N94: 5 | O94: 9000103 | P94: 10006,10013,10014 | Q94: 200
A95: 91 | C95: 1-91 | D95: 3;92 | E95: 153 | F95: 8 | G95: 180 | H95: 180 | I95: 50557746 | J95: 10007,10011,10014 | K95: 10005,10012,10014 | L95: 0 | M95: 154 | N95: 5 | O95: 9000103 | P95: 10006,10013,10014 | Q95: 200
A96: 92 | C96: 1-92 | D96: 3;93 | E96: 154 | F96: 8 | G96: 180 | H96: 180 | I96: 51977804 | J96: 10007,10011,10014 | K96: 10005,10012,10014 | L96: 0 | M96: 155 | N96: 5 | O96: 9000103 | P96: 10006,10013,10014 | Q96: 200
A97: 93 | C97: 1-93 | D97: 3;94 | E97: 155 | F97: 8 | G97: 190 | H97: 190 | I97: 53651822 | J97: 10007,10011,10014 | K97: 10005,10012,10014 | L97: 0 | M97: 156 | N97: 5 | O97: 9000103 | P97: 10006,10013,10014 | Q97: 200
A98: 94 | C98: 1-94 | D98: 3;95 | E98: 156 | F98: 8 | G98: 190 | H98: 190 | I98: 55601606 | J98: 10007,10011,10014 | K98: 10005,10012,10014 | L98: 0 | M98: 157 | N98: 5 | O98: 9000103 | P98: 10006,10013,10014 | Q98: 200
A99: 95 | C99: 1-95 | D99: 3;96 | E99: 157 | F99: 8 | G99: 190 | H99: 190 | I99: 57853082 | J99: 10007,10011,10014 | K99: 10005,10012,10014 | L99: 0 | M99: 158 | N99: 5 | O99: 9000103 | P99: 10006,10013,10014 | Q99: 200
A100: 96 | C100: 1-96 | D100: 3;97 | E100: 158 | F100: 8 | G100: 190 | H100: 190 | I100: 60436870 | J100: 10007,10011,10014 | K100: 10005,10012,10014 | L100: 0 | M100: 159 | N100: 5 | O100: 9000103 | P100: 10006,10013,10014 | Q100: 200
A101: 97 | C101: 1-97 | D101: 3;98 | E101: 159 | F101: 8 | G101: 190 | H101: 190 | I101: 63388978 | J101: 10007,10011,10014 | K101: 10005,10012,10014 | L101: 0 | M101: 160 | N101: 5 | O101: 9000103 | P101: 10006,10013,10014 | Q101: 200
A102: 98 | C102: 1-98 | D102: 3;99 | E102: 160 | F102: 8 | G102: 200 | H102: 200 | I102: 66751624 | J102: 10007,10011,10014 | K102: 10005,10012,10014 | L102: 0 | M102: 161 | N102: 5 | O102: 9000103 | P102: 10006,10013,10014 | Q102: 200
A103: 99 | C103: 1-99 | D103: 3;100 | E103: =M102 -> 161 | F103: 8 | G103: 200 | H103: 200 | I103: 70574244 | J103: 10007,10011,10014 | K103: 10005,10012,10014 | L103: 0 | M103: 162 | N103: 5 | O103: 9000103 | P103: 10006,10013,10014 | Q103: 200
A104: 100 | C104: 1-100 | D104: 3;101 | E104: 162 | F104: 8 | G104: 200 | H104: 200 | I104: 74914682 | J104: 10007,10011,10014 | K104: 10005,10012,10014 | L104: 0 | M104: 163 | N104: 5 | O104: 9000103 | P104: 10006,10013,10014 | Q104: 200
A105: 101 | C105: 1-101 | D105: 3;102 | E105: 163 | F105: 8 | G105: 200 | H105: 200 | I105: 79840632 | J105: 10007,10011,10014 | K105: 10005,10012,10014 | L105: 1 | M105: 164 | N105: 6 | O105: 9000104 | P105: 10006,10013,10014 | Q105: 200
A106: 102 | C106: 1-102 | D106: 3;103 | E106: 164 | F106: 8 | G106: 200 | H106: 200 | I106: 85431354 | J106: 10007,10011,10014 | K106: 10005,10012,10014 | L106: 2 | M106: 165 | N106: 7 | O106: 9000105 | P106: 10006,10013,10014 | Q106: 200
A107: 103 | C107: 1-103 | D107: 3;104 | E107: 165 | F107: 8 | G107: 210 | H107: 210 | I107: 91779762 | J107: 10007,10011,10014 | K107: 10005,10012,10014 | L107: 3 | M107: 166 | N107: 8 | O107: 9000106 | P107: 10006,10013,10014 | Q107: 200
A108: 104 | C108: 1-104 | D108: 3;105 | E108: 166 | F108: 9 | G108: 210 | H108: 210 | I108: 98994914 | J108: 10007,10011,10014 | K108: 10005,10012,10014 | L108: 4 | M108: 167 | N108: 9 | O108: 9000107 | P108: 10006,10013,10014 | Q108: 200
A109: 105 | C109: 1-105 | D109: 3;106 | E109: 167 | F109: 9 | G109: 210 | H109: 210 | I109: 106990828 | J109: 10007,10011,10014 | K109: 10005,10012,10014 | L109: 5 | M109: 168 | N109: 10 | O109: 9000108 | P109: 10006,10013,10014 | Q109: 200
A110: 106 | C110: 1-106 | D110: 3;107 | E110: 168 | F110: 9 | G110: 210 | H110: 210 | I110: 115170744 | J110: 10007,10011,10014 | K110: 10005,10012,10014 | L110: 6 | M110: 169 | N110: 11 | O110: 9000109 | P110: 10006,10013,10014 | Q110: 200
A111: 107 | C111: 1-107 | D111: 3;108 | E111: 169 | F111: 9 | G111: 210 | H111: 210 | I111: 123480890 | J111: 10007,10011,10014 | K111: 10005,10012,10014 | L111: 7 | M111: 170 | N111: 12 | O111: 9000110 | P111: 10006,10013,10014 | Q111: 200
A112: 108 | C112: 1-108 | D112: 3;109 | E112: 170 | F112: 9 | G112: 220 | H112: 220 | I112: 131861884 | J112: 10007,10011,10014 | K112: 10005,10012,10014 | L112: 8 | M112: 171 | N112: 13 | O112: 9000111 | P112: 10006,10013,10014 | Q112: 200
A113: 109 | C113: 1-109 | D113: 3;110 | E113: 171 | F113: 9 | G113: 220 | H113: 220 | I113: 140249318 | J113: 10007,10011,10014 | K113: 10005,10012,10014 | L113: 9 | M113: 172 | N113: 14 | O113: 9000112 | P113: 10006,10013,10014 | Q113: 200
A114: 110 | C114: 1-110 | D114: 3;111 | E114: 172 | F114: 9 | G114: 220 | H114: 220 | I114: 148574470 | J114: 10007,10011,10014 | K114: 10005,10012,10014 | L114: 10 | M114: 173 | N114: 15 | O114: 9000113 | P114: 10006,10013,10014 | Q114: 200
A115: 111 | C115: 1-111 | D115: 3;112 | E115: 173 | F115: 9 | G115: 220 | H115: 220 | I115: 156765170 | J115: 10007,10011,10014 | K115: 10005,10012,10014 | L115: 11 | M115: 175 | N115: 16 | O115: 9000114 | P115: 10006,10013,10014 | Q115: 200
A116: 112 | C116: 1-112 | D116: 3;113 | E116: 175 | F116: 9 | G116: 220 | H116: 220 | I116: 164746774 | J116: 10007,10011,10014 | K116: 10005,10012,10014 | L116: 12 | M116: 177 | N116: 17 | O116: 9000115 | P116: 10006,10013,10014 | Q116: 200
A117: 113 | C117: 1-113 | D117: 3;114 | E117: 177 | F117: 9 | G117: 230 | H117: 230 | I117: 172443256 | J117: 10007,10011,10014 | K117: 10005,10012,10014 | L117: 13 | M117: 179 | N117: 18 | O117: 9000116 | P117: 10006,10013,10014 | Q117: 200
A118: 114 | C118: 1-114 | D118: 3;115 | E118: 179 | F118: 9 | G118: 230 | H118: 230 | I118: 179778380 | J118: 10007,10011,10014 | K118: 10005,10012,10014 | L118: 14 | M118: 181 | N118: 19 | O118: 9000117 | P118: 10006,10013,10014 | Q118: 200
A119: 115 | C119: 1-115 | D119: 3;116 | E119: 181 | F119: 9 | G119: 230 | H119: 230 | I119: 186676934 | J119: 10007,10011,10014 | K119: 10005,10012,10014 | L119: 15 | M119: 183 | N119: 20 | O119: 9000118 | P119: 10006,10013,10014 | Q119: 200
A120: 116 | C120: 1-116 | D120: 3;117 | E120: 183 | F120: 9 | G120: 230 | H120: 230 | I120: 193066006 | J120: 10007,10011,10014 | K120: 10005,10012,10014 | L120: 16 | M120: 185 | N120: 21 | O120: 9000119 | P120: 10006,10013,10014 | Q120: 200
A121: 117 | C121: 1-117 | D121: 3;118 | E121: 185 | F121: 9 | G121: 230 | H121: 230 | I121: 198876250 | J121: 10007,10011,10014 | K121: 10005,10012,10014 | L121: 17 | M121: 187 | N121: 22 | O121: 9000120 | P121: 10006,10013,10014 | Q121: 200
A122: 118 | C122: 1-118 | D122: 3;119 | E122: 187 | F122: 9 | G122: 240 | H122: 240 | I122: 204043134 | J122: 10007,10011,10014 | K122: 10005,10012,10014 | L122: 18 | M122: 189 | N122: 23 | O122: 9000121 | P122: 10006,10013,10014 | Q122: 200
A123: 119 | C123: 1-119 | D123: 3;120 | E123: 189 | F123: 9 | G123: 240 | H123: 240 | I123: 208508132 | J123: 10007,10011,10014 | K123: 10005,10012,10014 | L123: 19 | M123: 191 | N123: 24 | O123: 9000122 | P123: 10006,10013,10014 | Q123: 200
A124: 120 | C124: 1-120 | D124: 3;121 | E124: 191 | F124: 9 | G124: 240 | H124: 240 | I124: 212219830 | J124: 10007,10011,10014 | K124: 10005,10012,10014 | L124: 20 | M124: 193 | N124: 25 | O124: 9000123 | P124: 10006,10013,10014 | Q124: 200
A125: 121 | C125: 1-121 | D125: 3;122 | E125: 193 | F125: 9 | G125: 240 | H125: 240 | I125: 215134906 | J125: 10007,10011,10014 | K125: 10005,10012,10014 | L125: 21 | M125: 195 | N125: 26 | O125: 9000124 | P125: 10006,10013,10014 | Q125: 200
A126: 122 | C126: 1-122 | D126: 3;123 | E126: 195 | F126: 9 | G126: 240 | H126: 240 | I126: 217218972 | J126: 10007,10011,10014 | K126: 10005,10012,10014 | L126: 22 | M126: 197 | N126: 27 | O126: 9000125 | P126: 10006,10013,10014 | Q126: 200
A127: 123 | C127: 1-123 | D127: 3;124 | E127: 197 | F127: 9 | G127: 250 | H127: 250 | I127: 218447248 | J127: 10007,10011,10014 | K127: 10005,10012,10014 | L127: 23 | M127: 199 | N127: 28 | O127: 9000126 | P127: 10006,10013,10014 | Q127: 200
A128: 124 | C128: 1-124 | D128: 3;125 | E128: 199 | F128: 9 | G128: 250 | H128: 250 | I128: 218805056 | J128: 10007,10011,10014 | K128: 10005,10012,10014 | L128: 24 | M128: 201 | N128: 29 | O128: 9000127 | P128: 10006,10013,10014 | Q128: 200
A129: 125 | C129: 1-125 | D129: 3;126 | E129: 201 | F129: 9 | G129: 250 | H129: 250 | I129: 218944286 | J129: 10007,10011,10014 | K129: 10005,10012,10014 | L129: 25 | M129: 203 | N129: 30 | O129: 9000128 | P129: 10006,10013,10014 | Q129: 200
A130: 126 | C130: 1-126 | D130: 3;127 | E130: 203 | F130: 10 | G130: 250 | H130: 250 | I130: 219083604 | J130: 10007,10011,10014 | K130: 10005,10012,10014 | L130: 26 | M130: 206 | N130: 31 | O130: 9000129 | P130: 10006,10013,10014 | Q130: 200
A131: 127 | C131: 1-127 | D131: 3;128 | E131: 206 | F131: 10 | G131: 250 | H131: 250 | I131: 219223014 | J131: 10007,10011,10014 | K131: 10005,10012,10014 | L131: 27 | M131: 209 | N131: 32 | O131: 9000130 | P131: 10006,10013,10014 | Q131: 200
A132: 128 | C132: 1-128 | D132: 3;129 | E132: 209 | F132: 10 | G132: 259 | H132: 259 | I132: 219362512 | J132: 10007,10011,10014 | K132: 10005,10012,10014 | L132: 28 | M132: 212 | N132: 33 | O132: 9000131 | P132: 10006,10013,10014 | Q132: 200
A133: 129 | C133: 1-129 | D133: 3;130 | E133: 212 | F133: 10 | G133: 259 | H133: 259 | I133: 219502098 | J133: 10007,10011,10014 | K133: 10005,10012,10014 | L133: 29 | M133: 215 | N133: 34 | O133: 9000132 | P133: 10006,10013,10014 | Q133: 200
A134: 130 | C134: 1-130 | D134: 3;131 | E134: 215 | F134: 10 | G134: 259 | H134: 259 | I134: 219641772 | J134: 10007,10011,10014 | K134: 10005,10012,10014 | L134: 30 | M134: 218 | N134: 35 | O134: 9000133 | P134: 10006,10013,10014 | Q134: 200
A135: 131 | C135: 1-131 | D135: 3;132 | E135: =M134 -> 218 | F135: 10 | G135: 259 | H135: 259 | I135: 219781534 | J135: 10007,10011,10014 | K135: 10005,10012,10014 | L135: 31 | M135: 221 | N135: 36 | O135: 9000134 | P135: 10006,10013,10014 | Q135: 200
A136: 132 | C136: 1-132 | D136: 3;133 | E136: 221 | F136: 10 | G136: 259 | H136: 259 | I136: 219921388 | J136: 10007,10011,10014 | K136: 10005,10012,10014 | L136: 32 | M136: 224 | N136: 37 | O136: 9000135 | P136: 10006,10013,10014 | Q136: 200
A137: 133 | C137: 1-133 | D137: 3;134 | E137: 224 | F137: 10 | G137: 269 | H137: 269 | I137: 220061330 | J137: 10007,10011,10014 | K137: 10005,10012,10014 | L137: 33 | M137: 227 | N137: 38 | O137: 9000136 | P137: 10006,10013,10014 | Q137: 200
A138: 134 | C138: 1-134 | D138: 3;135 | E138: 227 | F138: 10 | G138: 269 | H138: 269 | I138: 220201360 | J138: 10007,10011,10014 | K138: 10005,10012,10014 | L138: 34 | M138: 230 | N138: 39 | O138: 9000137 | P138: 10006,10013,10014 | Q138: 200
A139: 135 | C139: 1-135 | D139: 3;136 | E139: 230 | F139: 10 | G139: 269 | H139: 269 | I139: 220341480 | J139: 10007,10011,10014 | K139: 10005,10012,10014 | L139: 35 | M139: 233 | N139: 40 | O139: 9000138 | P139: 10006,10013,10014 | Q139: 200
A140: 136 | C140: 1-136 | D140: 3;137 | E140: 233 | F140: 10 | G140: 269 | H140: 269 | I140: 220481690 | J140: 10007,10011,10014 | K140: 10005,10012,10014 | L140: 36 | M140: 236 | N140: 41 | O140: 9000139 | P140: 10006,10013,10014 | Q140: 200
A141: 137 | C141: 1-137 | D141: 3;138 | E141: 236 | F141: 10 | G141: 269 | H141: 269 | I141: 220621988 | J141: 10007,10011,10014 | K141: 10005,10012,10014 | L141: 37 | M141: 239 | N141: 42 | O141: 9000140 | P141: 10006,10013,10014 | Q141: 200
A142: 138 | C142: 1-138 | D142: 3;139 | E142: 239 | F142: 10 | G142: 279 | H142: 279 | I142: 220762374 | J142: 10007,10011,10014 | K142: 10005,10012,10014 | L142: 38 | M142: 242 | N142: 43 | O142: 9000141 | P142: 10006,10013,10014 | Q142: 200
A143: 139 | C143: 1-139 | D143: 3;140 | E143: 242 | F143: 10 | G143: 279 | H143: 279 | I143: 220902852 | J143: 10007,10011,10014 | K143: 10005,10012,10014 | L143: 39 | M143: 245 | N143: 44 | O143: 9000142 | P143: 10006,10013,10014 | Q143: 200
A144: 140 | C144: 1-140 | D144: 3;141 | E144: 245 | F144: 10 | G144: 279 | H144: 279 | I144: 221043418 | J144: 10007,10011,10014 | K144: 10005,10012,10014 | L144: 40 | M144: 249 | N144: 45 | O144: 9000143 | P144: 10006,10013,10014 | Q144: 200
A145: 141 | C145: 1-141 | D145: 3;142 | E145: 249 | F145: 10 | G145: 279 | H145: 279 | I145: 221184072 | J145: 10007,10011,10014 | K145: 10005,10012,10014 | L145: 41 | M145: 253 | N145: 46 | O145: 9000144 | P145: 10006,10013,10014 | Q145: 200
A146: 142 | C146: 1-142 | D146: 3;143 | E146: 253 | F146: 10 | G146: 279 | H146: 279 | I146: 221324818 | J146: 10007,10011,10014 | K146: 10005,10012,10014 | L146: 42 | M146: 257 | N146: 47 | O146: 9000145 | P146: 10006,10013,10014 | Q146: 200
A147: 143 | C147: 1-143 | D147: 3;144 | E147: 257 | F147: 10 | G147: 289 | H147: 289 | I147: 221465652 | J147: 10007,10011,10014 | K147: 10005,10012,10014 | L147: 43 | M147: 261 | N147: 48 | O147: 9000146 | P147: 10006,10013,10014 | Q147: 200
A148: 144 | C148: 1-144 | D148: 3;145 | E148: 261 | F148: 10 | G148: 289 | H148: 289 | I148: 221606576 | J148: 10007,10011,10014 | K148: 10005,10012,10014 | L148: 44 | M148: 265 | N148: 49 | O148: 9000147 | P148: 10006,10013,10014 | Q148: 200
A149: 145 | C149: 1-145 | D149: 3;146 | E149: 265 | F149: 10 | G149: 289 | H149: 289 | I149: 221747590 | J149: 10007,10011,10014 | K149: 10005,10012,10014 | L149: 45 | M149: 269 | N149: 50 | O149: 9000148 | P149: 10006,10013,10014 | Q149: 200
A150: 146 | C150: 1-146 | D150: 3;147 | E150: 269 | F150: 10 | G150: 289 | H150: 289 | I150: 221888694 | J150: 10007,10011,10014 | K150: 10005,10012,10014 | L150: 46 | M150: 273 | N150: 51 | O150: 9000149 | P150: 10006,10013,10014 | Q150: 200
A151: 147 | C151: 1-147 | D151: 3;148 | E151: 273 | F151: 10 | G151: 289 | H151: 289 | I151: 222029888 | J151: 10007,10011,10014 | K151: 10005,10012,10014 | L151: 47 | M151: 277 | N151: 52 | O151: 9000150 | P151: 10006,10013,10014 | Q151: 200
A152: 148 | C152: 1-148 | D152: 3;149 | E152: 277 | F152: 10 | G152: 299 | H152: 299 | I152: 222171170 | J152: 10007,10011,10014 | K152: 10005,10012,10014 | L152: 48 | M152: 281 | N152: 53 | O152: 9000151 | P152: 10006,10013,10014 | Q152: 200
A153: 149 | C153: 1-149 | D153: 3;150 | E153: 281 | F153: 10 | G153: 299 | H153: 299 | I153: 222312544 | J153: 10007,10011,10014 | K153: 10005,10012,10014 | L153: 49 | M153: 285 | N153: 54 | O153: 9000152 | P153: 10006,10013,10014 | Q153: 200
A154: 150 | C154: 1-150 | D154: 3;151 | E154: 285 | F154: 10 | G154: 299 | H154: 299 | I154: 222454006 | J154: 10007,10011,10014 | K154: 10005,10012,10014 | L154: 50 | M154: 300 | N154: 55 | O154: 9000153 | P154: 10006,10013,10014 | Q154: 200

Sheet MonsterWavesConfig
A1: ID | B1: wavesDelay | D1: monsterGroupConfigId | E1: miniMonsterCount | F1: eliteMonsterCount
A2: int | B2: int | D2: int[] | E2: int[] | F2: int[]
A4: ID | B4: 物品表的ID 掉落道具 | C4: VLOOKUP 语言表中的实际值 (策划看) | D4: 每一波可以刷出来的怪物组 | E4: 每一波可以耍的小怪数量 | F4: 每一波可以耍的精英怪数量
A5: 1 | B5: 5 | D5: 1;1;1;1;1;1;2;2;2 | E5: 1;2;3;4;5;5;5;5;5 | F5: 0;0;0;0;0;0;0;0;0;0;0
A6: 2 | B6: 5 | D6: 2;2;3;3;4;4;3;3;4 | E6: 2;3;4;5;6;6;6;6;6 | F6: 0;0;0;0;0;1;0;0;1;0;1
A7: 3 | B7: 5 | D7: 2;2;3;3;4;4;3;3;4 | E7: 3;4;5;7;10;10;10;10;10 | F7: 0;0;0;0;0;1;0;0;1;0;1
A8: 4 | B8: 5 | D8: 2;2;3;3;4;4;3;3;4 | E8: 3;4;5;7;10;10;10;10;10 | F8: 0;0;0;0;0;1;0;0;1;0;1
A9: 5 | B9: 5 | D9: 2;2;3;3;4;4;3;3;4 | E9: 3;4;5;7;10;10;10;10;10 | F9: 0;0;0;0;0;1;0;0;1;0;1
A10: 6 | B10: 5 | D10: 2;2;3;3;4;4;3;3;4 | E10: 3;4;5;7;10;10;10;10;10 | F10: 0;0;0;0;0;1;0;0;1;0;1
A11: 7 | B11: 5 | D11: 2;2;3;3;4;4;3;3;4 | E11: 3;4;5;7;10;10;10;10;10 | F11: 0;0;0;0;0;1;0;0;1;0;1
A12: 8 | B12: 5 | D12: 2;2;3;3;4;4;3;3;4 | E12: 3;4;5;7;10;10;10;10;10 | F12: 0;0;0;0;0;1;0;0;1;0;1
A13: 9 | B13: 5 | D13: 2;2;3;3;4;4;3;3;4 | E13: 3;4;5;7;10;10;10;10;10 | F13: 0;0;0;0;0;1;0;0;1;0;1
A14: 10 | B14: 5 | D14: 2;2;3;3;4;4;3;3;4 | E14: 3;4;5;7;10;10;10;10;10 | F14: 0;0;0;0;0;1;0;0;1;0;1
A15: 11 | B15: 5 | D15: 2;2;3;3;4;4;3;3;4 | E15: 3;4;5;7;10;10;10;10;10 | F15: 0;0;0;0;0;1;0;0;1;0;1
A16: 12 | B16: 5 | D16: 2;2;3;3;4;4;3;3;4 | E16: 3;4;5;7;10;10;10;10;10 | F16: 0;0;0;0;0;1;0;0;1;0;1
A17: 13 | B17: 5 | D17: 2;2;3;3;4;4;3;3;4 | E17: 3;4;5;7;10;10;10;10;10 | F17: 0;0;0;0;0;1;0;0;1;0;1
A18: 14 | B18: 5 | D18: 2;2;3;3;4;4;3;3;4 | E18: 3;4;5;7;10;10;10;10;10 | F18: 0;0;0;0;0;1;0;0;1;0;1
A19: 15 | B19: 5 | D19: 2;2;3;3;4;4;3;3;4 | E19: 3;4;5;7;10;10;10;10;10 | F19: 0;0;0;0;0;1;0;1;1;0;1
A20: 16 | B20: 5 | D20: 2;2;3;3;4;4;3;3;4 | E20: 3;4;5;7;10;10;10;10;10 | F20: 0;0;0;0;0;1;0;0;1;0;1
A21: 17 | B21: 5 | D21: 2;2;3;3;4;4;3;3;4 | E21: 3;4;5;7;10;10;10;10;10 | F21: 0;0;0;0;0;1;0;1;1;0;1
A22: 18 | B22: 5 | D22: 2;2;3;3;4;4;3;3;4 | E22: 3;4;5;7;10;10;10;10;10 | F22: 0;0;0;0;0;1;0;0;1;0;1
A23: 19 | B23: 5 | D23: 2;2;3;3;4;4;3;3;4 | E23: 3;4;5;7;10;10;15;15;15 | F23: 0;0;0;0;0;1;0;0;1;0;1
A24: 20 | B24: 5 | D24: 2;2;3;3;4;4;3;3;4 | E24: 3;4;5;7;10;10;15;15;15 | F24: 0;0;0;0;0;1;0;0;1;0;1
A25: 21 | B25: 5 | D25: 2;2;3;3;4;4;3;3;4 | E25: 3;4;5;7;10;10;15;15;15 | F25: 0;0;0;0;0;1;0;0;1;0;1
A26: 22 | B26: 5 | D26: 2;2;3;3;4;4;3;3;4 | E26: 3;4;5;7;10;10;15;15;15 | F26: 0;0;0;0;0;1;0;0;1;0;1
A27: 23 | B27: 5 | D27: 2;2;3;3;4;4;3;3;4 | E27: 3;4;5;7;10;10;15;15;15 | F27: 0;0;0;0;0;1;0;0;1;0;1
A28: 24 | B28: 5 | D28: 2;2;3;3;4;4;3;3;4 | E28: 3;4;5;7;10;10;15;15;15 | F28: 0;0;0;0;0;1;0;0;1;0;1
A29: 25 | B29: 5 | D29: 2;2;3;3;4;4;3;3;4 | E29: 3;4;5;7;10;10;15;15;15 | F29: 0;0;0;0;0;1;0;0;1;0;1
A30: 26 | B30: 5 | D30: 2;2;3;3;4;4;3;3;4 | E30: 3;4;5;7;10;10;15;15;15 | F30: 0;0;0;0;0;1;0;0;1;0;1
A31: 27 | B31: 5 | D31: 2;2;3;3;4;4;3;3;4 | E31: 3;4;5;7;10;10;15;15;15 | F31: 0;0;0;0;0;1;0;0;1;0;1
A32: 28 | B32: 5 | D32: 2;2;3;3;4;4;3;3;4 | E32: 3;4;5;7;10;10;15;15;15 | F32: 0;0;0;0;0;1;0;0;1;0;1
A33: 29 | B33: 5 | D33: 2;2;3;3;4;4;3;3;4 | E33: 3;4;5;7;10;10;15;15;15 | F33: 0;0;0;0;0;1;0;0;1;0;1
A34: 30 | B34: 5 | D34: 2;2;3;3;4;4;3;3;4;3;4 | E34: 3;4;5;7;10;10;15;15;15;15;15 | F34: 0;0;0;0;0;1;0;0;1;0;1;1;1
A35: 31 | B35: 5 | D35: 2;2;3;3;4;4;3;3;4;3;4 | E35: 3;4;5;7;10;10;15;15;15;15;15 | F35: 0;0;0;0;0;1;0;0;1;0;1;1;1
A36: 32 | B36: 5 | D36: 2;2;3;3;4;4;3;3;4;3;4 | E36: 3;4;5;7;10;10;15;15;15;15;15 | F36: 0;0;0;0;0;1;0;0;1;0;1;1;1
A37: 33 | B37: 5 | D37: 2;2;3;3;4;4;3;3;4;3;4 | E37: 3;4;5;7;10;10;15;15;15;15;15 | F37: 0;0;0;0;0;1;0;0;1;0;1;1;1
A38: 34 | B38: 5 | D38: 2;2;3;3;4;4;3;3;4;3;4 | E38: 3;4;5;7;10;10;15;15;15;15;15 | F38: 0;0;0;0;0;1;0;0;1;0;1;1;1
A39: 35 | B39: 5 | D39: 2;2;3;3;4;4;3;3;4;3;4 | E39: 3;4;5;7;10;10;15;15;15;15;15 | F39: 0;0;0;0;0;1;0;0;1;0;1;1;1
A40: 36 | B40: 5 | D40: 2;2;3;3;4;4;3;3;4;3;4 | E40: 3;4;5;7;10;10;15;15;15;15;15 | F40: 0;0;0;0;0;1;0;0;1;0;1;1;1
A41: 37 | B41: 5 | D41: 2;2;3;3;4;4;3;3;4;3;4 | E41: 3;4;5;7;10;10;15;15;15;15;15 | F41: 0;0;0;0;0;1;0;0;1;0;1;1;1
A42: 38 | B42: 5 | D42: 2;2;3;3;4;4;3;3;4;3;4 | E42: 3;4;5;7;10;10;15;15;15;15;15 | F42: 0;0;0;0;0;1;0;0;1;0;1;1;1
A43: 39 | B43: 5 | D43: 2;2;3;3;4;4;3;3;4;3;4 | E43: 3;4;5;7;10;10;15;15;15;15;15 | F43: 0;0;0;0;0;1;0;0;1;0;1;1;1
A44: 40 | B44: 5 | D44: 2;2;3;3;4;4;3;3;4;3;4 | E44: 3;4;5;7;10;10;15;15;15;15;15 | F44: 0;0;0;0;0;1;0;0;1;0;1;1;1
A45: 41 | B45: 5 | D45: 2;2;3;3;4;4;3;3;4;3;4 | E45: 3;4;5;7;10;10;15;15;15;15;15 | F45: 0;0;0;0;0;1;0;0;1;0;1;1;1
A46: 42 | B46: 5 | D46: 2;2;3;3;4;4;3;3;4;3;4 | E46: 3;4;5;7;10;10;15;15;15;15;15 | F46: 0;0;0;0;0;1;0;0;1;0;1;1;1
A47: 43 | B47: 5 | D47: 2;2;3;3;4;4;3;3;4;3;4 | E47: 3;4;5;7;10;10;15;15;15;15;15 | F47: 0;0;0;0;0;1;0;0;1;0;1;1;1
A48: 44 | B48: 5 | D48: 2;2;3;3;4;4;3;3;4;3;4 | E48: 3;4;5;7;10;10;15;15;15;15;15 | F48: 0;0;0;0;0;1;0;0;1;0;1;1;1
A49: 45 | B49: 5 | D49: 2;2;3;3;4;4;3;3;4;3;4 | E49: 3;4;5;7;10;10;15;15;15;15;15 | F49: 0;0;0;0;0;1;0;0;1;0;1;1;1
A50: 46 | B50: 5 | D50: 2;2;3;3;4;4;3;3;4;3;4 | E50: 3;4;5;7;10;10;15;15;15;15;15 | F50: 0;0;0;0;0;1;0;0;1;0;1;1;1
A51: 47 | B51: 5 | D51: 2;2;3;3;4;4;3;3;4;3;4 | E51: 3;4;5;7;10;10;15;15;15;15;15 | F51: 0;0;0;0;0;1;0;0;1;0;1;1;1
A52: 48 | B52: 5 | D52: 2;2;3;3;4;4;3;3;4;3;4 | E52: 3;4;5;7;10;10;15;15;15;15;15 | F52: 0;0;0;0;0;1;0;0;1;0;1;1;1
A53: 49 | B53: 5 | D53: 2;2;3;3;4;4;3;3;4;3;4 | E53: 3;4;5;7;10;10;15;15;15;15;15 | F53: 0;0;0;0;0;1;0;0;1;0;1;1;1
A54: 50 | B54: 5 | D54: 2;2;3;3;4;4;3;3;4;3;4 | E54: 3;4;5;7;10;10;15;15;15;15;15 | F54: 0;0;0;0;0;1;0;0;1;0;1;1;1
A55: 51 | B55: 5 | D55: 2;2;3;3;4;4;3;3;4;3;4 | E55: 3;4;5;7;10;10;15;15;15;15;15 | F55: 0;0;0;0;0;1;0;0;1;0;1;1;1
A56: 52 | B56: 5 | D56: 2;2;3;3;4;4;3;3;4;3;4 | E56: 3;4;5;7;10;10;15;15;15;15;15 | F56: 0;0;0;0;0;1;0;0;1;0;1;1;1
A57: 53 | B57: 5 | D57: 2;2;3;3;4;4;3;3;4;3;4 | E57: 3;4;5;7;10;10;15;15;15;15;15 | F57: 0;0;0;0;0;1;0;0;1;0;1;1;1
A58: 54 | B58: 5 | D58: 2;2;3;3;4;4;3;3;4;3;4 | E58: 3;4;5;7;10;10;15;15;15;15;15 | F58: 0;0;0;0;0;1;0;0;1;0;1;1;1
A59: 55 | B59: 5 | D59: 2;2;3;3;4;4;3;3;4;3;4 | E59: 3;4;5;7;10;10;15;15;15;15;15 | F59: 0;0;0;0;0;1;0;0;1;0;1;1;1
A60: 56 | B60: 5 | D60: 2;2;3;3;4;4;3;3;4;3;4 | E60: 3;4;5;7;10;10;15;15;15;15;15 | F60: 0;0;0;0;0;1;0;0;1;0;1;1;1
A61: 57 | B61: 5 | D61: 2;2;3;3;4;4;3;3;4;3;4 | E61: 3;4;5;7;10;10;15;15;15;15;15 | F61: 0;0;0;0;0;1;0;0;1;0;1;1;1
A62: 58 | B62: 5 | D62: 2;2;3;3;4;4;3;3;4;3;4 | E62: 3;4;5;7;10;10;15;15;15;15;15 | F62: 0;0;0;0;0;1;0;0;1;0;1;1;1
A63: 59 | B63: 5 | D63: 2;2;3;3;4;4;3;3;4;3;4 | E63: 3;4;5;7;10;10;15;15;15;15;15 | F63: 0;0;0;0;0;1;0;0;1;0;1;1;1
A64: 60 | B64: 5 | D64: 2;2;3;3;4;4;3;3;4;3;4 | E64: 3;4;5;7;10;10;15;15;15;15;15 | F64: 0;0;0;0;0;1;0;0;1;0;1;1;1
A65: 61 | B65: 5 | D65: 2;2;3;3;4;4;3;3;4;3;4 | E65: 3;4;5;7;10;10;15;15;15;15;15 | F65: 0;0;0;0;0;1;0;0;1;0;1;1;1
A66: 62 | B66: 5 | D66: 2;2;3;3;4;4;3;3;4;3;4 | E66: 3;4;5;7;10;10;15;15;15;15;15 | F66: 0;0;0;0;0;1;0;0;1;0;1;1;1
A67: 63 | B67: 5 | D67: 2;2;3;3;4;4;3;3;4;3;4 | E67: 3;4;5;7;10;10;15;15;15;15;15 | F67: 0;0;0;0;0;1;0;0;1;0;1;1;1
A68: 64 | B68: 5 | D68: 2;2;3;3;4;4;3;3;4;3;4 | E68: 3;4;5;7;10;10;15;15;15;15;15 | F68: 0;0;0;0;0;1;0;0;1;0;1;1;1
A69: 65 | B69: 5 | D69: 2;2;3;3;4;4;3;3;4;3;4 | E69: 3;4;5;7;10;10;15;15;15;15;15 | F69: 0;0;0;0;0;1;0;0;1;0;1;1;1
A70: 66 | B70: 5 | D70: 2;2;3;3;4;4;3;3;4;3;4 | E70: 3;4;5;7;10;10;15;15;15;15;15 | F70: 0;0;0;0;0;1;0;0;1;0;1;1;1
A71: 67 | B71: 5 | D71: 2;2;3;3;4;4;3;3;4;3;4 | E71: 3;4;5;7;10;10;15;15;15;15;15 | F71: 0;0;0;0;0;1;0;0;1;0;1;1;1
A72: 68 | B72: 5 | D72: 2;2;3;3;4;4;3;3;4;3;4 | E72: 3;4;5;7;10;10;15;15;15;15;15 | F72: 0;0;0;0;0;1;0;0;1;0;1;1;1
A73: 69 | B73: 5 | D73: 2;2;3;3;4;4;3;3;4;3;4 | E73: 3;4;5;7;10;10;15;15;15;15;15 | F73: 0;0;0;0;0;1;0;0;1;0;1;1;1
A74: 70 | B74: 5 | D74: 2;2;3;3;4;4;3;3;4;3;4 | E74: 3;4;5;7;10;10;15;15;15;15;15 | F74: 0;0;0;0;0;1;0;0;1;0;1;1;1
A75: 71 | B75: 5 | D75: 2;2;3;3;4;4;3;3;4;3;4 | E75: 3;4;5;7;10;10;15;15;15;15;15 | F75: 0;0;0;0;0;1;0;0;1;0;1;1;1
A76: 72 | B76: 5 | D76: 2;2;3;3;4;4;3;3;4;3;4 | E76: 3;4;5;7;10;10;15;15;15;15;15 | F76: 0;0;0;0;0;1;0;0;1;0;1;1;1
A77: 73 | B77: 5 | D77: 2;2;3;3;4;4;3;3;4;3;4 | E77: 3;4;5;7;10;10;15;15;15;15;15 | F77: 0;0;0;0;0;1;0;0;1;0;1;1;1
A78: 74 | B78: 5 | D78: 2;2;3;3;4;4;3;3;4;3;4 | E78: 3;4;5;7;10;10;15;15;15;15;15 | F78: 0;0;0;0;0;1;0;0;1;0;1;1;1
A79: 75 | B79: 5 | D79: 2;2;3;3;4;4;3;3;4;3;4 | E79: 3;4;5;7;10;10;15;15;15;15;15 | F79: 0;0;0;0;0;1;0;0;1;0;1;1;1
A80: 76 | B80: 5 | D80: 2;2;3;3;4;4;3;3;4;3;4 | E80: 3;4;5;7;10;10;15;15;15;15;15 | F80: 0;0;0;0;0;1;0;0;1;0;1;1;1
A81: 77 | B81: 5 | D81: 2;2;3;3;4;4;3;3;4;3;4 | E81: 3;4;5;7;10;10;15;15;15;15;15 | F81: 0;0;0;0;0;1;0;0;1;0;1;1;1
A82: 78 | B82: 5 | D82: 2;2;3;3;4;4;3;3;4;3;4 | E82: 3;4;5;7;10;10;15;15;15;15;15 | F82: 0;0;0;0;0;1;0;0;1;0;1;1;1
A83: 79 | B83: 5 | D83: 2;2;3;3;4;4;3;3;4;3;4 | E83: 3;4;5;7;10;10;15;15;15;15;15 | F83: 0;0;0;0;0;1;0;0;1;0;1;1;1
A84: 80 | B84: 5 | D84: 2;2;3;3;4;4;3;3;4;3;4 | E84: 3;4;5;7;10;10;15;15;15;15;15 | F84: 0;0;0;0;0;1;0;0;1;0;1;1;1
A85: 81 | B85: 5 | D85: 2;2;3;3;4;4;3;3;4;3;4 | E85: 3;4;5;7;10;10;15;15;15;15;15 | F85: 0;0;0;0;0;1;0;0;1;0;1;1;1
A86: 82 | B86: 5 | D86: 2;2;3;3;4;4;3;3;4;3;4 | E86: 3;4;5;7;10;10;15;15;15;15;15 | F86: 0;0;0;0;0;1;0;0;1;0;1;1;1
A87: 83 | B87: 5 | D87: 2;2;3;3;4;4;3;3;4;3;4 | E87: 3;4;5;7;10;10;15;15;15;15;15 | F87: 0;0;0;0;0;1;0;0;1;0;1;1;1
A88: 84 | B88: 5 | D88: 2;2;3;3;4;4;3;3;4;3;4 | E88: 3;4;5;7;10;10;15;15;15;15;15 | F88: 0;0;0;0;0;1;0;0;1;0;1;1;1
A89: 85 | B89: 5 | D89: 2;2;3;3;4;4;3;3;4;3;4 | E89: 3;4;5;7;10;10;15;15;15;15;15 | F89: 0;0;0;0;0;1;0;0;1;0;1;1;1
A90: 86 | B90: 5 | D90: 2;2;3;3;4;4;3;3;4;3;4 | E90: 3;4;5;7;10;10;15;15;15;15;15 | F90: 0;0;0;0;0;1;0;0;1;0;1;1;1
A91: 87 | B91: 5 | D91: 2;2;3;3;4;4;3;3;4;3;4 | E91: 3;4;5;7;10;10;15;15;15;15;15 | F91: 0;0;0;0;0;1;0;0;1;0;1;1;1
A92: 88 | B92: 5 | D92: 2;2;3;3;4;4;3;3;4;3;4 | E92: 3;4;5;7;10;10;15;15;15;15;15 | F92: 0;0;0;0;0;1;0;0;1;0;1;1;1
A93: 89 | B93: 5 | D93: 2;2;3;3;4;4;3;3;4;3;4 | E93: 3;4;5;7;10;10;15;15;15;15;15 | F93: 0;0;0;0;0;1;0;0;1;0;1;1;1
A94: 90 | B94: 5 | D94: 2;2;3;3;4;4;3;3;4;3;4 | E94: 3;4;5;7;10;10;15;15;15;15;15 | F94: 0;0;0;0;0;1;0;0;1;0;1;1;1
A95: 91 | B95: 5 | D95: 2;2;3;3;4;4;3;3;4;3;4 | E95: 3;4;5;7;10;10;15;15;15;15;15 | F95: 0;0;0;0;0;1;0;0;1;0;1;1;1
A96: 92 | B96: 5 | D96: 2;2;3;3;4;4;3;3;4;3;4 | E96: 3;4;5;7;10;10;15;15;15;15;15 | F96: 0;0;0;0;0;1;0;0;1;0;1;1;1
A97: 93 | B97: 5 | D97: 2;2;3;3;4;4;3;3;4;3;4 | E97: 3;4;5;7;10;10;15;15;15;15;15 | F97: 0;0;0;0;0;1;0;0;1;0;1;1;1
A98: 94 | B98: 5 | D98: 2;2;3;3;4;4;3;3;4;3;4 | E98: 3;4;5;7;10;10;15;15;15;15;15 | F98: 0;0;0;0;0;1;0;0;1;0;1;1;1
A99: 95 | B99: 5 | D99: 2;2;3;3;4;4;3;3;4;3;4 | E99: 3;4;5;7;10;10;15;15;15;15;15 | F99: 0;0;0;0;0;1;0;0;1;0;1;1;1
A100: 96 | B100: 5 | D100: 2;2;3;3;4;4;3;3;4;3;4 | E100: 3;4;5;7;10;10;15;15;15;15;15 | F100: 0;0;0;0;0;1;0;0;1;0;1;1;1
A101: 97 | B101: 5 | D101: 2;2;3;3;4;4;3;3;4;3;4 | E101: 3;4;5;7;10;10;15;15;15;15;15 | F101: 0;0;0;0;0;1;0;0;1;0;1;1;1
A102: 98 | B102: 5 | D102: 2;2;3;3;4;4;3;3;4;3;4 | E102: 3;4;5;7;10;10;15;15;15;15;15 | F102: 0;0;0;0;0;1;0;0;1;0;1;1;1
A103: 99 | B103: 5 | D103: 2;2;3;3;4;4;3;3;4;3;4 | E103: 3;4;5;7;10;10;15;15;15;15;15 | F103: 0;0;0;0;0;1;0;0;1;0;1;1;1
A104: 100 | B104: 5 | D104: 2;2;3;3;4;4;3;3;4;3;4 | E104: 3;4;5;7;10;10;15;15;15;15;15 | F104: 0;0;0;0;0;1;0;0;1;0;1;1;1
A105: 101 | B105: 5 | D105: 2;2;3;3;4;4;3;3;4;3;4 | E105: 3;4;5;7;10;10;15;15;15;15;15 | F105: 0;0;0;0;0;1;0;0;1;0;1;1;1
A106: 102 | B106: 5 | D106: 2;2;3;3;4;4;3;3;4;3;4 | E106: 3;4;5;7;10;10;15;15;15;15;15 | F106: 0;0;0;0;0;1;0;0;1;0;1;1;1
A107: 103 | B107: 5 | D107: 2;2;3;3;4;4;3;3;4;3;4 | E107: 3;4;5;7;10;10;15;15;15;15;15 | F107: 0;0;0;0;0;1;0;0;1;0;1;1;1
A108: 104 | B108: 5 | D108: 2;2;3;3;4;4;3;3;4;3;4 | E108: 3;4;5;7;10;10;15;15;15;15;15 | F108: 0;0;0;0;0;1;0;0;1;0;1;1;1
A109: 105 | B109: 5 | D109: 2;2;3;3;4;4;3;3;4;3;4 | E109: 3;4;5;7;10;10;15;15;15;15;15 | F109: 0;0;0;0;0;1;0;0;1;0;1;1;1
A110: 106 | B110: 5 | D110: 2;2;3;3;4;4;3;3;4;3;4 | E110: 3;4;5;7;10;10;15;15;15;15;15 | F110: 0;0;0;0;0;1;0;0;1;0;1;1;1
A111: 107 | B111: 5 | D111: 2;2;3;3;4;4;3;3;4;3;4 | E111: 3;4;5;7;10;10;15;15;15;15;15 | F111: 0;0;0;0;0;1;0;0;1;0;1;1;1
A112: 108 | B112: 5 | D112: 2;2;3;3;4;4;3;3;4;3;4 | E112: 3;4;5;7;10;10;15;15;15;15;15 | F112: 0;0;0;0;0;1;0;0;1;0;1;1;1
A113: 109 | B113: 5 | D113: 2;2;3;3;4;4;3;3;4;3;4 | E113: 3;4;5;7;10;10;15;15;15;15;15 | F113: 0;0;0;0;0;1;0;0;1;0;1;1;1
A114: 110 | B114: 5 | D114: 2;2;3;3;4;4;3;3;4;3;4 | E114: 3;4;5;7;10;10;15;15;15;15;15 | F114: 0;0;0;0;0;1;0;0;1;0;1;1;1
A115: 111 | B115: 5 | D115: 2;2;3;3;4;4;3;3;4;3;4 | E115: 3;4;5;7;10;10;15;15;15;15;15 | F115: 0;0;0;0;0;1;0;0;1;0;1;1;1
A116: 112 | B116: 5 | D116: 2;2;3;3;4;4;3;3;4;3;4 | E116: 3;4;5;7;10;10;15;15;15;15;15 | F116: 0;0;0;0;0;1;0;0;1;0;1;1;1
A117: 113 | B117: 5 | D117: 2;2;3;3;4;4;3;3;4;3;4 | E117: 3;4;5;7;10;10;15;15;15;15;15 | F117: 0;0;0;0;0;1;0;0;1;0;1;1;1
A118: 114 | B118: 5 | D118: 2;2;3;3;4;4;3;3;4;3;4 | E118: 3;4;5;7;10;10;15;15;15;15;15 | F118: 0;0;0;0;0;1;0;0;1;0;1;1;1
A119: 115 | B119: 5 | D119: 2;2;3;3;4;4;3;3;4;3;4 | E119: 3;4;5;7;10;10;15;15;15;15;15 | F119: 0;0;0;0;0;1;0;0;1;0;1;1;1
A120: 116 | B120: 5 | D120: 2;2;3;3;4;4;3;3;4;3;4 | E120: 3;4;5;7;10;10;15;15;15;15;15 | F120: 0;0;0;0;0;1;0;0;1;0;1;1;1
A121: 117 | B121: 5 | D121: 2;2;3;3;4;4;3;3;4;3;4 | E121: 3;4;5;7;10;10;15;15;15;15;15 | F121: 0;0;0;0;0;1;0;0;1;0;1;1;1
A122: 118 | B122: 5 | D122: 2;2;3;3;4;4;3;3;4;3;4 | E122: 3;4;5;7;10;10;15;15;15;15;15 | F122: 0;0;0;0;0;1;0;0;1;0;1;1;1
A123: 119 | B123: 5 | D123: 2;2;3;3;4;4;3;3;4;3;4 | E123: 3;4;5;7;10;10;15;15;15;15;15 | F123: 0;0;0;0;0;1;0;0;1;0;1;1;1
A124: 120 | B124: 5 | D124: 2;2;3;3;4;4;3;3;4;3;4 | E124: 3;4;5;7;10;10;15;15;15;15;15 | F124: 0;0;0;0;0;1;0;0;1;0;1;1;1
A125: 121 | B125: 5 | D125: 2;2;3;3;4;4;3;3;4;3;4 | E125: 3;4;5;7;10;10;15;15;15;15;15 | F125: 0;0;0;0;0;1;0;0;1;0;1;1;1
A126: 122 | B126: 5 | D126: 2;2;3;3;4;4;3;3;4;3;4 | E126: 3;4;5;7;10;10;15;15;15;15;15 | F126: 0;0;0;0;0;1;0;0;1;0;1;1;1
A127: 123 | B127: 5 | D127: 2;2;3;3;4;4;3;3;4;3;4 | E127: 3;4;5;7;10;10;15;15;15;15;15 | F127: 0;0;0;0;0;1;0;0;1;0;1;1;1
A128: 124 | B128: 5 | D128: 2;2;3;3;4;4;3;3;4;3;4 | E128: 3;4;5;7;10;10;15;15;15;15;15 | F128: 0;0;0;0;0;1;0;0;1;0;1;1;1
A129: 125 | B129: 5 | D129: 2;2;3;3;4;4;3;3;4;3;4 | E129: 3;4;5;7;10;10;15;15;15;15;15 | F129: 0;0;0;0;0;1;0;0;1;0;1;1;1
A130: 126 | B130: 5 | D130: 2;2;3;3;4;4;3;3;4;3;4 | E130: 3;4;5;7;10;10;15;15;15;15;15 | F130: 0;0;0;0;0;1;0;0;1;0;1;1;1
A131: 127 | B131: 5 | D131: 2;2;3;3;4;4;3;3;4;3;4 | E131: 3;4;5;7;10;10;15;15;15;15;15 | F131: 0;0;0;0;0;1;0;0;1;0;1;1;1
A132: 128 | B132: 5 | D132: 2;2;3;3;4;4;3;3;4;3;4 | E132: 3;4;5;7;10;10;15;15;15;15;15 | F132: 0;0;0;0;0;1;0;0;1;0;1;1;1
A133: 129 | B133: 5 | D133: 2;2;3;3;4;4;3;3;4;3;4 | E133: 3;4;5;7;10;10;15;15;15;15;15 | F133: 0;0;0;0;0;1;0;0;1;0;1;1;1
A134: 130 | B134: 5 | D134: 2;2;3;3;4;4;3;3;4;3;4 | E134: 3;4;5;7;10;10;15;15;15;15;15 | F134: 0;0;0;0;0;1;0;0;1;0;1;1;1
A135: 131 | B135: 5 | D135: 2;2;3;3;4;4;3;3;4;3;4 | E135: 3;4;5;7;10;10;15;15;15;15;15 | F135: 0;0;0;0;0;1;0;0;1;0;1;1;1
A136: 132 | B136: 5 | D136: 2;2;3;3;4;4;3;3;4;3;4 | E136: 3;4;5;7;10;10;15;15;15;15;15 | F136: 0;0;0;0;0;1;0;0;1;0;1;1;1
A137: 133 | B137: 5 | D137: 2;2;3;3;4;4;3;3;4;3;4 | E137: 3;4;5;7;10;10;15;15;15;15;15 | F137: 0;0;0;0;0;1;0;0;1;0;1;1;1
A138: 134 | B138: 5 | D138: 2;2;3;3;4;4;3;3;4;3;4 | E138: 3;4;5;7;10;10;15;15;15;15;15 | F138: 0;0;0;0;0;1;0;0;1;0;1;1;1
A139: 135 | B139: 5 | D139: 2;2;3;3;4;4;3;3;4;3;4 | E139: 3;4;5;7;10;10;15;15;15;15;15 | F139: 0;0;0;0;0;1;0;0;1;0;1;1;1
A140: 136 | B140: 5 | D140: 2;2;3;3;4;4;3;3;4;3;4 | E140: 3;4;5;7;10;10;15;15;15;15;15 | F140: 0;0;0;0;0;1;0;0;1;0;1;1;1
A141: 137 | B141: 5 | D141: 2;2;3;3;4;4;3;3;4;3;4 | E141: 3;4;5;7;10;10;15;15;15;15;15 | F141: 0;0;0;0;0;1;0;0;1;0;1;1;1
A142: 138 | B142: 5 | D142: 2;2;3;3;4;4;3;3;4;3;4 | E142: 3;4;5;7;10;10;15;15;15;15;15 | F142: 0;0;0;0;0;1;0;0;1;0;1;1;1
A143: 139 | B143: 5 | D143: 2;2;3;3;4;4;3;3;4;3;4 | E143: 3;4;5;7;10;10;15;15;15;15;15 | F143: 0;0;0;0;0;1;0;0;1;0;1;1;1
A144: 140 | B144: 5 | D144: 2;2;3;3;4;4;3;3;4;3;4 | E144: 3;4;5;7;10;10;15;15;15;15;15 | F144: 0;0;0;0;0;1;0;0;1;0;1;1;1
A145: 141 | B145: 5 | D145: 2;2;3;3;4;4;3;3;4;3;4 | E145: 3;4;5;7;10;10;15;15;15;15;15 | F145: 0;0;0;0;0;1;0;0;1;0;1;1;1
A146: 142 | B146: 5 | D146: 2;2;3;3;4;4;3;3;4;3;4 | E146: 3;4;5;7;10;10;15;15;15;15;15 | F146: 0;0;0;0;0;1;0;0;1;0;1;1;1
A147: 143 | B147: 5 | D147: 2;2;3;3;4;4;3;3;4;3;4 | E147: 3;4;5;7;10;10;15;15;15;15;15 | F147: 0;0;0;0;0;1;0;0;1;0;1;1;1
A148: 144 | B148: 5 | D148: 2;2;3;3;4;4;3;3;4;3;4 | E148: 3;4;5;7;10;10;15;15;15;15;15 | F148: 0;0;0;0;0;1;0;0;1;0;1;1;1
A149: 145 | B149: 5 | D149: 2;2;3;3;4;4;3;3;4;3;4 | E149: 3;4;5;7;10;10;15;15;15;15;15 | F149: 0;0;0;0;0;1;0;0;1;0;1;1;1
A150: 146 | B150: 5 | D150: 2;2;3;3;4;4;3;3;4;3;4 | E150: 3;4;5;7;10;10;15;15;15;15;15 | F150: 0;0;0;0;0;1;0;0;1;0;1;1;1
A151: 147 | B151: 5 | D151: 2;2;3;3;4;4;3;3;4;3;4 | E151: 3;4;5;7;10;10;15;15;15;15;15 | F151: 0;0;0;0;0;1;0;0;1;0;1;1;1
A152: 148 | B152: 5 | D152: 2;2;3;3;4;4;3;3;4;3;4 | E152: 3;4;5;7;10;10;15;15;15;15;15 | F152: 0;0;0;0;0;1;0;0;1;0;1;1;1
A153: 149 | B153: 5 | D153: 2;2;3;3;4;4;3;3;4;3;4 | E153: 3;4;5;7;10;10;15;15;15;15;15 | F153: 0;0;0;0;0;1;0;0;1;0;1;1;1
A154: 150 | B154: 5 | D154: 2;2;3;3;4;4;3;3;4;3;4 | E154: 3;4;5;7;10;10;15;15;15;15;15 | F154: 0;0;0;0;0;1;0;0;1;0;1;1;1
A155: 151 | B155: 5 | D155: 2;2;3;3;4;4;3;3;4;3;4 | E155: 3;4;5;7;10;10;15;15;15;15;15 | F155: 0;0;0;0;0;1;0;0;1;0;1;1;1
A156: 152 | B156: 5 | D156: 2;2;3;3;4;4;3;3;4;3;4 | E156: 3;4;5;7;10;10;15;15;15;15;15 | F156: 0;0;0;0;0;1;0;0;1;0;1;1;1
A157: 153 | B157: 5 | D157: 2;2;3;3;4;4;3;3;4;3;4 | E157: 3;4;5;7;10;10;15;15;15;15;15 | F157: 0;0;0;0;0;1;0;0;1;0;1;1;1

Sheet MonsterGroupConfig
A1: ID | B1: miniMonsterId | C1: eliteMonsterId
A2: int | B2: int[] | C2: int[]
A4: ID | B4: 全部可以刷的小怪怪物组 | C4: 全部可以耍的精英怪组
A5: 1 | B5: 9000101;9000107;9000108;9000109;9000101;9000107;9000101;9000107 | C5: 9000102;9000105;9000102
A6: 2 | B6: 9000101;9000107;9000108;9000109;9000101;9000107;9000101;9000107 | C6: 9000102;9000105;9000102
A7: 3 | B7: 9000104;9000107;9000108;9000109;9000101;9000107;9000101;9000107 | C7: 9000102;9000105;9000102
A8: 4 | B8: 9000104;9000107;9000108;9000109;9000101;9000107;9000101;9000107 | C8: 9000102;9000105;9000105

Sheet 产出
E1: 实际单个怪经验产出 | K1: 多少波升级一次 | M1: 英雄数量 | P1: 阶段额外提升经验 | X1: =SUBTOTAL(9,D2:D210) -> 1012767773 | Y1: =SUBTOTAL(9,E2:E250)/250 -> 62.376
A2: 1 | B2: 40 | D2: 10 | E2: =ROUND(D2/B2/K2*M2*(1+ROUND(A2/10,0)*$Q$2)/3,0) -> 2 | K2: 0.2 | M2: 4 | O2: =D3/D2 -> 1.2 | P2: 0 | Q2: 5 | R2: 0.1 | S2: =D2*2 -> 20 | T2: 1 | U2: =IF(MOD(A2,2)=0,0,E2) -> 2 | V2: =IF(MOD(A2,2)=0,0,S2) -> 20 | X2: =X1*4 -> 4051071092 | Y2: =Y1*40 -> 2495.04 | Z2: 100 | AA2: =Z2*E2/D2/4 -> 5 | AB2: =SUBTOTAL(9,AA2:AA124) -> 92122950 | AC2: =SUBTOTAL(9,AA2:AA52) -> 82128 | AD2: =SUM(D2:D51)*4 -> 308428 | AE2: 4
A3: 2 | B3: 40 | D3: 12 | E3: =ROUND(D3/B3/K3*M3*(1+ROUND(A3/10,0)*$Q$2)/3,0) -> 2 | K3: =K2*1.01 -> 0.202 | M3: 4 | O3: =D4/D3 -> 1.166666667 | P3: 0 | T3: 2 | U3: =IF(MOD(A3,2)=0,0,E3) -> 0 | AA3: =D3*2 -> 24
A4: 3 | B4: 40 | D4: 14 | E4: =ROUND(D4/B4/K4*M4*(1+ROUND(A4/10,0)*$Q$2)/3,0) -> 2 | K4: =K3*O3 -> 0.2356666667 | M4: 4 | O4: =D5/D4 -> 1.142857143 | P4: 0 | S4: =D4*2 -> 28 | T4: 3 | U4: =IF(MOD(A4,2)=0,0,E4) -> 2 | V4: =IF(MOD(A4,2)=0,0,S4) -> 28 | Y4: =X2/Y2 -> 1623649.758 | Z4: 100 | AA4: =Z4*E4/D4/4 -> 3.571428571 | AE4: =ROUND(AA4+AE2,0) -> 8
A5: 4 | B5: 40 | D5: 16 | E5: =ROUND(D5/B5/K5*M5*(1+ROUND(A5/10,0)*$Q$2)/3,0) -> 2 | K5: =K4*O4 -> 0.2693333333 | M5: 4 | O5: =D6/D5 -> 1.1875 | P5: 0 | T5: 4 | U5: =IF(MOD(A5,2)=0,0,E5) -> 0 | AA5: =D5*2 -> 32
A6: 5 | B6: 40 | D6: 19 | E6: =ROUND(D6/B6/K6*M6*(1+ROUND(A6/10,0)*$Q$2)/3,0) -> 12 | K6: =K5*O5 -> 0.3198333333 | M6: 4 | O6: 1.157894737 | P6: 0 | S6: =D6*2 -> 38 | T6: 5 | U6: 12 | V6: =IF(MOD(A6,2)=0,0,S6) -> 38 | Y6: =Y4/1.5/60/24 -> 751.6897027 | Z6: 100 | AA6: =Z6*E6/D6/4 -> 15.78947368 | AE6: =ROUND(AA6+AE4,0) -> 24
A7: 6 | B7: 40 | D7: 22 | E7: =ROUND(D7/B7/K7*M7*(1+ROUND(A7/10,0)*$Q$2)/3,0) -> 12 | K7: 0.3703333333 | M7: 4 | O7: 1.136363636 | P7: 0 | T7: 6 | U7: 0 | AA7: =D7*2 -> 44
A8: 7 | B8: 40 | D8: 25 | E8: 12 | K8: 0.4208333333 | M8: 4 | O8: 1.16 | P8: 0 | S8: =D8*2 -> 50 | T8: 7 | U8: 12 | V8: =IF(MOD(A8,2)=0,0,S8) -> 50 | Z8: 100 | AA8: =Z8*E8/D8/4 -> 12 | AE8: =ROUND(AA8+AE6,0) -> 36
A9: 8 | B9: 40 | D9: 29 | E9: 12 | K9: =K8*O8 -> 0.4881666667 | M9: 4 | O9: 1.172413793 | P9: 0 | T9: 8 | U9: 0 | Z9: 170 | AA9: =D9*2 -> 58
A10: 9 | B10: 40 | D10: 34 | E10: 12 | K10: =K9*O9 -> 0.5723333333 | M10: 4 | O10: 1.147058824 | P10: 0 | S10: =D10*2 -> 68 | T10: 9 | U10: 12 | V10: =IF(MOD(A10,2)=0,0,S10) -> 68 | Z10: 100 | AA10: =Z10*E10/D10/4 -> 8.823529412 | AE10: =ROUND(AA10+AE8,0) -> 45
A11: 10 | B11: 40 | D11: 39 | E11: 12 | K11: 0.6565 | M11: 4 | O11: 1.153846154 | P11: 0.1 | T11: 10 | U11: 0 | Z11: 190 | AA11: =D11*2 -> 78
A12: 11 | B12: 40 | D12: 45 | E12: 12 | K12: =K11*O11 -> 0.7575 | M12: 4 | O12: 1.155555556 | P12: 0.1 | S12: =D12*2 -> 90 | T12: 11 | U12: 12 | V12: =IF(MOD(A12,2)=0,0,S12) -> 90 | Z12: 100 | AA12: =Z12*E12/D12/4 -> 6.666666667 | AE12: =ROUND(AA12+AE10,0) -> 52
A13: 12 | B13: 40 | D13: 52 | E13: 12 | K13: 0.8753333333 | M13: 4 | O13: 1.153846154 | P13: 0.1 | T13: 12 | U13: 0 | Z13: 210 | AA13: =D13*2 -> 104
A14: 13 | B14: 40 | D14: 60 | E14: 12 | K14: 1.01 | M14: 4 | O14: 1.15 | P14: 0.1 | S14: =D14*2 -> 120 | T14: 13 | U14: 12 | V14: =IF(MOD(A14,2)=0,0,S14) -> 120 | Z14: 100 | AA14: =Z14*E14/D14/4 -> 5 | AE14: =ROUND(AA14+AE12,0) -> 57
A15: 14 | B15: 40 | D15: 69 | E15: 12 | K15: 1.1615 | M15: 4 | O15: 1.15942029 | P15: 0.1 | T15: 14 | U15: 0 | Z15: 230 | AA15: =D15*2 -> 138
A16: 15 | B16: 40 | D16: 80 | E16: =ROUND(D16/B16/K16*M16*(1+ROUND(A16/10,0)*$Q$2)/3,0) -> 22 | K16: 1.346666667 | M16: 4 | O16: 1.15 | P16: 0.1 | S16: =D16*2 -> 160 | T16: 15 | U16: 22 | V16: =IF(MOD(A16,2)=0,0,S16) -> 160 | Z16: 100 | AA16: =Z16*E16/D16/4 -> 6.875 | AE16: =ROUND(AA16+AE14,0) -> 64
A17: 16 | B17: 40 | D17: 92 | E17: 22 | K17: =K16*O16 -> 1.548666667 | M17: 4 | O17: =D18/D17 -> 1.152173913 | P17: 0.1 | T17: 16 | U17: 0 | Z17: 250 | AA17: =D17*2 -> 184
A18: 17 | B18: 40 | D18: 106 | E18: 22 | K18: 1.784333333 | M18: 4 | O18: 1.150943396 | P18: 0.1 | S18: =D18*2 -> 212 | T18: 17 | U18: 22 | V18: =IF(MOD(A18,2)=0,0,S18) -> 212 | Z18: 100 | AA18: =Z18*E18/D18/4 -> 5.188679245 | AE18: =ROUND(AA18+AE16,0) -> 69
A19: 18 | B19: 40 | D19: 122 | E19: =ROUND(D19/B19/K19*M19*(1+ROUND(A19/10,0)*$Q$2)/3,0) -> 22 | K19: 2.053666667 | M19: 4 | O19: 1.155737705 | P19: 0.1 | T19: 18 | U19: 0 | Z19: 270 | AA19: =D19*2 -> 244
A20: 19 | B20: 40 | D20: 141 | E20: 22 | K20: 2.3735 | M20: 4 | O20: 1.156028369 | P20: 0.1 | S20: =D20*2 -> 282 | T20: 19 | U20: 22 | V20: =IF(MOD(A20,2)=0,0,S20) -> 282 | Z20: 110 | AA20: =Z20*E20/D20/4 -> 4.290780142 | AE20: =ROUND(AA20+AE18,0) -> 73
A21: 20 | B21: 40 | D21: 163 | E21: 22 | K21: 2.743833333 | M21: 4 | O21: 1.153374233 | P21: 0.2 | T21: 20 | U21: 0 | Z21: 290 | AA21: =D21*2 -> 326
A22: 21 | B22: 40 | D22: 188 | E22: 22 | K22: 3.164666667 | M22: 4 | O22: 1.154255319 | P22: 0.2 | S22: =D22*2 -> 376 | T22: 21 | U22: 22 | V22: =IF(MOD(A22,2)=0,0,S22) -> 376 | Z22: 110 | AA22: =Z22*E22/D22/4 -> 3.218085106 | AE22: =ROUND(AA22+AE20,0) -> 76
A23: 22 | B23: 40 | D23: 217 | E23: 22 | K23: 3.652833333 | M23: 4 | O23: 1.152073733 | P23: 0.2 | T23: 22 | U23: 0 | Z23: 310 | AA23: =D23*2 -> 434
A24: 23 | B24: 40 | D24: 250 | E24: 22 | K24: 4.208333333 | M24: 4 | O24: 1.152 | P24: 0.2 | S24: =D24*2 -> 500 | T24: 23 | U24: 22 | V24: =IF(MOD(A24,2)=0,0,S24) -> 500 | Z24: 110 | AA24: =Z24*E24/D24/4 -> 2.42 | AE24: =ROUND(AA24+AE22,0) -> 78
A25: 24 | B25: 40 | D25: 288 | E25: 22 | K25: 4.848 | M25: 4 | O25: 1.152777778 | P25: 0.2 | T25: 24 | U25: 0 | Z25: 330 | AA25: =D25*2 -> 576
A26: 25 | B26: 40 | D26: 332 | E26: 32 | K26: 5.588666667 | M26: 4 | O26: 1.15060241 | P26: 0.2 | S26: =D26*2 -> 664 | T26: 25 | U26: 32 | V26: =IF(MOD(A26,2)=0,0,S26) -> 664 | Z26: 110 | AA26: =Z26*E26/D26/4 -> 2.65060241 | AE26: =ROUND(AA26+AE24,0) -> 81
A27: 26 | B27: 40 | D27: 382 | E27: 32 | K27: 6.430333333 | M27: 4 | O27: 1.14921466 | P27: 0.2 | T27: 26 | U27: 0 | Z27: 350 | AA27: =D27*2 -> 764
A28: 27 | B28: 40 | D28: 439 | E28: 32 | K28: 7.389833333 | M28: 4 | O28: 1.150341686 | P28: 0.2 | S28: =D28*2 -> 878 | T28: 27 | U28: 32 | V28: =IF(MOD(A28,2)=0,0,S28) -> 878 | Z28: 110 | AA28: =Z28*E28/D28/4 -> 2.004555809 | AE28: =ROUND(AA28+AE26,0) -> 83
A29: 28 | B29: 40 | D29: 505 | E29: 32 | K29: 8.500833333 | M29: 4 | O29: 1.148514851 | P29: 0.2 | T29: 28 | U29: 0 | Z29: 370 | AA29: =D29*2 -> 1010
A30: 29 | B30: 40 | D30: 580 | E30: 32 | K30: 9.763333333 | M30: 4 | O30: 1.148275862 | P30: 0.2 | S30: =D30*2 -> 1160 | T30: 29 | U30: 32 | V30: =IF(MOD(A30,2)=0,0,S30) -> 1160 | Z30: 110 | AA30: =Z30*E30/D30/4 -> 1.517241379 | AE30: =ROUND(AA30+AE28,0) -> 85
A31: 30 | B31: 40 | D31: 666 | E31: 32 | K31: 11.211 | M31: 4 | O31: 1.147147147 | P31: 0.3 | T31: 30 | U31: 0 | Z31: 390 | AA31: =D31*2 -> 1332
A32: 31 | B32: 40 | D32: 764 | E32: 32 | K32: 12.86066667 | M32: 4 | O32: 1.147905759 | P32: 0.3 | S32: =D32*2 -> 1528 | T32: 31 | U32: 32 | V32: =IF(MOD(A32,2)=0,0,S32) -> 1528 | Z32: 110 | AA32: =Z32*E32/D32/4 -> 1.151832461 | AE32: =ROUND(AA32+AE30,0) -> 86
A33: 32 | B33: 40 | D33: 877 | E33: 32 | K33: 14.76283333 | M33: 4 | O33: 1.14709236 | P33: 0.3 | T33: 32 | U33: 0 | Z33: 410 | AA33: =D33*2 -> 1754
A34: 33 | B34: 40 | D34: 1006 | E34: 32 | K34: 16.93433333 | M34: 4 | O34: 1.14612326 | P34: 0.3 | S34: =D34*2 -> 2012 | T34: 33 | U34: 32 | V34: =IF(MOD(A34,2)=0,0,S34) -> 2012 | Z34: 110 | AA34: =Z34*E34/D34/4 -> 0.8747514911 | AE34: =ROUND(AA34+AE32,0) -> 87
A35: 34 | B35: 40 | D35: 1153 | E35: 32 | K35: 19.40883333 | M35: 4 | O35: 1.145706852 | P35: 0.3 | T35: 34 | U35: 0 | Z35: 430 | AA35: =D35*2 -> 2306
A36: 35 | B36: 40 | D36: 1321 | E36: 42 | K36: 22.23683333 | M36: 4 | O36: 1.145344436 | P36: 0.3 | S36: =D36*2 -> 2642 | T36: 35 | U36: 42 | V36: =IF(MOD(A36,2)=0,0,S36) -> 2642 | Z36: 110 | AA36: =Z36*E36/D36/4 -> 0.874337623 | AE36: =ROUND(AA36+AE34,0) -> 88
A37: 36 | B37: 40 | D37: 1513 | E37: 42 | K37: 25.46883333 | M37: 4 | O37: 1.144745539 | P37: 0.3 | T37: 36 | U37: =IF(MOD(A37,2)=0,0,E37) -> 0 | Z37: 450 | AA37: =D37*2 -> 3026
A38: 37 | B38: 40 | D38: 1732 | E38: 42 | K38: 29.15533333 | M38: 4 | O38: 1.143764434 | P38: 0.3 | S38: =D38*2 -> 3464 | T38: 37 | U38: 42 | V38: =IF(MOD(A38,2)=0,0,S38) -> 3464 | Z38: 110 | AA38: =Z38*E38/D38/4 -> 0.6668591224 | AE38: =ROUND(AA38+AE36,0) -> 89
A39: 38 | B39: 40 | D39: 1981 | E39: 42 | K39: 33.34683333 | M39: 4 | O39: 1.143361938 | P39: 0.3 | T39: 38 | U39: 0 | Z39: 470 | AA39: =D39*2 -> 3962
A40: 39 | B40: 40 | D40: 2265 | E40: 42 | K40: 38.1275 | M40: 4 | O40: 1.142604857 | P40: 0.3 | S40: =D40*2 -> 4530 | T40: 39 | U40: 42 | V40: =IF(MOD(A40,2)=0,0,S40) -> 4530 | Z40: 110 | AA40: =Z40*E40/D40/4 -> 0.5099337748 | AE40: =ROUND(AA40+AE38,0) -> 90
A41: 40 | B41: 40 | D41: 2588 | E41: 42 | K41: 43.56466667 | M41: 4 | O41: 1.142194745 | P41: 0.3 | T41: 40 | U41: 0 | Z41: 490 | AA41: =D41*2 -> 5176
A42: 41 | B42: 40 | D42: 2956 | E42: 42 | K42: 49.75933333 | M42: 4 | O42: 1.141745602 | P42: 0.3 | S42: =D42*2 -> 5912 | T42: 41 | U42: 42 | V42: =IF(MOD(A42,2)=0,0,S42) -> 5912 | Z42: 110 | AA42: =Z42*E42/D42/4 -> 0.3907307172 | AE42: =ROUND(AA42+AE40,0) -> 90
A43: 42 | B43: 40 | D43: 3375 | E43: 42 | K43: 56.8125 | M43: 4 | O43: 1.141037037 | P43: 0.3 | T43: 42 | U43: 0 | Z43: 510 | AA43: =D43*2 -> 6750
A44: 43 | B44: 40 | D44: 3851 | E44: 42 | K44: 64.82516667 | M44: 4 | O44: 1.140482991 | P44: 0.3 | S44: =D44*2 -> 7702 | T44: 43 | U44: 42 | V44: =IF(MOD(A44,2)=0,0,S44) -> 7702 | Z44: 110 | AA44: =Z44*E44/D44/4 -> 0.2999220982 | AE44: =ROUND(AA44+AE42,0) -> 90
A45: 44 | B45: 40 | D45: 4392 | E45: 42 | K45: 73.932 | M45: 4 | O45: 1.139344262 | P45: 0.3 | T45: 44 | U45: 0 | Z45: 530 | AA45: =D45*2 -> 8784
A46: 45 | B46: 40 | D46: 5004 | E46: 51 | K46: 84.234 | M46: 4 | O46: 1.138089528 | P46: 0.3 | S46: =D46*2 -> 10008 | T46: 45 | U46: 51 | V46: =IF(MOD(A46,2)=0,0,S46) -> 10008 | Z46: 110 | AA46: =Z46*E46/D46/4 -> 0.2802757794 | AE46: =ROUND(AA46+AE44,0) -> 90
A47: 46 | B47: 40 | D47: 5695 | E47: 51 | K47: 95.86583333 | M47: 4 | O47: 1.136962248 | P47: 0.3 | T47: 46 | U47: 0 | Z47: 550 | AA47: =D47*2 -> 11390
A48: 47 | B48: 40 | D48: 6475 | E48: 51 | K48: 108.9958333 | M48: 4 | O48: 1.135907336 | P48: 0.3 | S48: =D48*2 -> 12950 | T48: 47 | U48: 51 | V48: =IF(MOD(A48,2)=0,0,S48) -> 12950 | Z48: 110 | AA48: =Z48*E48/D48/4 -> 0.2166023166 | AE48: =ROUND(AA48+AE46,0) -> 90
A49: 48 | B49: 40 | D49: 7355 | E49: 51 | K49: 123.8091667 | M49: 4 | O49: 1.134738273 | P49: 0.3 | T49: 48 | U49: 0 | Z49: 570 | AA49: =D49*2 -> 14710
A50: 49 | B50: 40 | D50: 8346 | E50: 51 | K50: 140.491 | M50: 4 | O50: 1.133596933 | P50: 0.3 | S50: =D50*2 -> 16692 | T50: 49 | U50: 51 | V50: =IF(MOD(A50,2)=0,0,S50) -> 16692 | Z50: 110 | AA50: =Z50*E50/D50/4 -> 0.1680445723 | AE50: =ROUND(AA50+AE48,0) -> 90
A51: 50 | B51: 40 | D51: 9461 | E51: 51 | K51: 159.2601667 | M51: 4 | O51: 1.132438431 | P51: 0.3 | T51: 50 | U51: 0 | Z51: 590 | AA51: =D51*2 -> 18922
A52: 51 | B52: 40 | D52: 10714 | E52: 51 | K52: 180.3523333 | M52: 4 | O52: =D53/D52 -> 1.131323502 | P52: 0.3 | S52: =D52*2 -> 21428 | T52: 51 | U52: 51 | V52: =IF(MOD(A52,2)=0,0,S52) -> 21428 | Z52: 130 | AA52: =Z52*E52/D52/4 -> 0.1547041254 | AE52: =ROUND(AA52+AE50,0) -> 90
A53: 52 | B53: 40 | D53: 12121 | E53: 51 | K53: =K52*O52 -> 204.0368333 | M53: 4 | O53: 1.130187278 | P53: 0.3 | T53: 52 | U53: 0 | Z53: 610 | AA53: =D53*2 -> 24242
A54: 53 | B54: 40 | D54: 13699 | E54: 51 | K54: =K53*O53 -> 230.5998333 | M54: 4 | O54: 1.129060515 | P54: 0.3 | S54: =D54*2 -> 27398 | T54: 53 | U54: 51 | V54: =IF(MOD(A54,2)=0,0,S54) -> 27398 | Z54: 130 | AA54: =Z54*E54/D54/4 -> 0.1209942332 | AE54: =ROUND(AA54+AE52,0) -> 90
A55: 54 | B55: 40 | D55: 15467 | E55: 51 | K55: 260.3611667 | M55: 4 | O55: 1.127949829 | P55: 0.3 | T55: 54 | U55: 0 | Z55: 630 | AA55: =D55*2 -> 30934
A56: 55 | B56: 40 | D56: 17446 | E56: 61 | K56: 293.6743333 | M56: 4 | O56: 1.126848561 | P56: 0.3 | S56: =D56*2 -> 34892 | T56: 55 | U56: 61 | V56: =IF(MOD(A56,2)=0,0,S56) -> 34892 | Z56: 130 | AA56: =Z56*E56/D56/4 -> 0.1136363636 | AE56: =ROUND(AA56+AE54,0) -> 90
A57: 56 | B57: 40 | D57: 19659 | E57: 61 | K57: 330.9265 | M57: 4 | O57: 1.125693067 | P57: 0.3 | T57: 56 | U57: 0 | Z57: 650 | AA57: =D57*2 -> 39318
A58: 57 | B58: 40 | D58: 22130 | E58: 61 | K58: 372.5216667 | M58: 4 | O58: 1.124582015 | P58: 0.3 | S58: =D58*2 -> 44260 | T58: 57 | U58: 61 | V58: =IF(MOD(A58,2)=0,0,S58) -> 44260 | Z58: 130 | AA58: =Z58*E58/D58/4 -> 0.08958427474 | AE58: =ROUND(AA58+AE56,0) -> 90
A59: 58 | B59: 40 | D59: 24887 | E59: 61 | K59: 418.9311667 | M59: 4 | O59: 1.123437939 | P59: 0.3 | T59: 58 | U59: 0 | Z59: 670 | AA59: =D59*2 -> 49774
A60: 59 | B60: 40 | D60: 27959 | E60: 61 | K60: 470.6431667 | M60: 4 | O60: 1.122321971 | P60: 0.3 | S60: =D60*2 -> 55918 | T60: 59 | U60: 61 | V60: =IF(MOD(A60,2)=0,0,S60) -> 55918 | Z60: 130 | AA60: =Z60*E60/D60/4 -> 0.07090740012 | AE60: =ROUND(AA60+AE58,0) -> 90
A61: 60 | B61: 40 | D61: 31379 | E61: 61 | K61: 528.2131667 | M61: 4 | O61: 1.121195704 | P61: 0.3 | T61: 60 | U61: 0 | Z61: 690 | AA61: =D61*2 -> 62758
A62: 61 | B62: 40 | D62: 35182 | E62: 61 | K62: 592.2303333 | M62: 4 | O62: 1.120089819 | P62: 0.3 | S62: =D62*2 -> 70364 | T62: 61 | U62: 61 | V62: =IF(MOD(A62,2)=0,0,S62) -> 70364 | Z62: 130 | AA62: =Z62*E62/D62/4 -> 0.05634983799 | AE62: =ROUND(AA62+AE60,0) -> 90
A63: 62 | B63: 40 | D63: 39407 | E63: 61 | K63: 663.3511667 | M63: 4 | O63: 1.118963636 | P63: 0.3 | T63: 62 | U63: 0 | Z63: 710 | AA63: =D63*2 -> 78814
A64: 63 | B64: 40 | D64: 44095 | E64: 61 | K64: 742.2658333 | M64: 4 | O64: 1.117859168 | P64: 0.3 | S64: =D64*2 -> 88190 | T64: 63 | U64: 61 | V64: =IF(MOD(A64,2)=0,0,S64) -> 88190 | Z64: 130 | AA64: =Z64*E64/D64/4 -> 0.044959746 | AE64: =ROUND(AA64+AE62,0) -> 90
A65: 64 | B65: 40 | D65: 49292 | E65: 61 | K65: 829.7486667 | M65: 4 | O65: 1.116732938 | P65: 0.3 | T65: 64 | U65: 0 | Z65: 730 | AA65: =D65*2 -> 98584
A66: 65 | B66: 40 | D66: 55046 | E66: 71 | K66: 926.6076667 | M66: 4 | O66: 1.115612397 | P66: 0.3 | S66: =D66*2 -> 110092 | T66: 65 | U66: 71 | V66: =IF(MOD(A66,2)=0,0,S66) -> 110092 | Z66: 130 | AA66: =Z66*E66/D66/4 -> 0.04191948552 | AE66: =ROUND(AA66+AE64,0) -> 90
A67: 66 | B67: 40 | D67: 61410 | E67: =ROUND(D67/B67/K67*M67*(1+ROUND(A67/10,0)*$Q$2)/3,0) -> 71 | K67: 1033.735 | M67: 4 | O67: 1.114492754 | P67: 0.3 | T67: 66 | U67: 0 | Z67: 750 | AA67: =D67*2 -> 122820
A68: 67 | B68: 40 | D68: 68441 | E68: 71 | K68: 1152.090167 | M68: 4 | O68: 1.113382329 | P68: 0.3 | S68: =D68*2 -> 136882 | T68: 67 | U68: 71 | V68: =IF(MOD(A68,2)=0,0,S68) -> 136882 | Z68: 130 | AA68: =Z68*E68/D68/4 -> 0.03371517073 | AE68: =ROUND(AA68+AE66,0) -> 90
A69: 68 | B69: 40 | D69: 76201 | E69: 71 | K69: 1282.716833 | M69: 4 | O69: 1.112268868 | P69: 0.3 | T69: 68 | U69: =IF(MOD(A69,2)=0,0,E69) -> 0 | Z69: 770 | AA69: =D69*2 -> 152402
A70: 69 | B70: 40 | D70: 84756 | E70: 71 | K70: 1426.726 | M70: 4 | O70: 1.111154373 | P70: 0.3 | S70: =D70*2 -> 169512 | T70: 69 | U70: 71 | V70: =IF(MOD(A70,2)=0,0,S70) -> 169512 | Z70: 130 | AA70: =Z70*E70/D70/4 -> 0.02722521119 | AE70: =ROUND(AA70+AE68,0) -> 90
A71: 70 | B71: 40 | D71: 94177 | E71: 71 | K71: 1585.312833 | M71: 4 | O71: 1.110048101 | P71: 0.3 | T71: 70 | U71: 0 | Z71: 790 | AA71: =D71*2 -> 188354
A72: 71 | B72: 40 | D72: 104541 | E72: 71 | K72: 1759.7735 | M72: 4 | O72: 1.108933337 | P72: 0.3 | S72: =D72*2 -> 209082 | T72: 71 | U72: 71 | V72: =IF(MOD(A72,2)=0,0,S72) -> 209082 | Z72: 130 | AA72: =Z72*E72/D72/4 -> 0.02207267962 | AE72: =ROUND(AA72+AE70,0) -> 90
A73: 72 | B73: 40 | D73: 115929 | E73: 71 | K73: 1951.4715 | M73: 4 | O73: 1.107824617 | P73: 0.3 | T73: 72 | U73: 0 | Z73: 810 | AA73: =D73*2 -> 231858
A74: 73 | B74: 40 | D74: 128429 | E74: 71 | K74: 2161.888167 | M74: 4 | O74: 1.106720445 | P74: 0.3 | S74: =D74*2 -> 256858 | T74: 73 | U74: 71 | V74: =IF(MOD(A74,2)=0,0,S74) -> 256858 | Z74: 130 | AA74: =Z74*E74/D74/4 -> 0.0179671258 | AE74: =ROUND(AA74+AE72,0) -> 90
A75: 74 | B75: 40 | D75: 142135 | E75: 71 | K75: 2392.605833 | M75: 4 | O75: 1.105610863 | P75: 0.3 | T75: 74 | U75: 0 | Z75: 830 | AA75: =D75*2 -> 284270
A76: 75 | B76: 40 | D76: 157146 | E76: 81 | K76: 2645.291 | M76: 4 | O76: 1.10450791 | P76: 0.3 | S76: =D76*2 -> 314292 | T76: 75 | U76: 81 | V76: =IF(MOD(A76,2)=0,0,S76) -> 314292 | Z76: 130 | AA76: =Z76*E76/D76/4 -> 0.01675193769 | AE76: =ROUND(AA76+AE74,0) -> 90
A77: 76 | B77: 40 | D77: 173569 | E77: 81 | K77: 2921.744833 | M77: 4 | O77: 1.103405562 | P77: 0.3 | T77: 76 | U77: 0 | Z77: 850 | AA77: =D77*2 -> 347138
A78: 77 | B78: 40 | D78: 191517 | E78: 81 | K78: 3223.8695 | M78: 4 | O78: 1.102299013 | P78: 0.3 | S78: =D78*2 -> 383034 | T78: 77 | U78: 81 | V78: =IF(MOD(A78,2)=0,0,S78) -> 383034 | Z78: 130 | AA78: =Z78*E78/D78/4 -> 0.01374551606 | AE78: =ROUND(AA78+AE76,0) -> 90
A79: 78 | B79: 40 | D79: 211109 | E79: 81 | K79: 3553.668167 | M79: 4 | O79: 1.101198907 | P79: 0.3 | T79: 78 | U79: 0 | Z79: 870 | AA79: =D79*2 -> 422218
A80: 79 | B80: 40 | D80: 232473 | E80: 81 | K80: 3913.2955 | M80: 4 | O80: 1.100097646 | P80: 0.3 | S80: =D80*2 -> 464946 | T80: 79 | U80: 81 | V80: =IF(MOD(A80,2)=0,0,S80) -> 464946 | Z80: 130 | AA80: =Z80*E80/D80/4 -> 0.01132389568 | AE80: =ROUND(AA80+AE78,0) -> 90
A81: 80 | B81: 40 | D81: 255743 | E81: 81 | K81: 4305.007167 | M81: 4 | O81: =D82/D81 -> 1.098997822 | P81: 0.3 | T81: 80 | U81: 0 | Z81: 890 | AA81: =D81*2 -> 511486
A82: 81 | B82: 40 | D82: 281061 | E82: 81 | K82: 4731.1935 | M82: 4 | O82: 1.097896898 | P82: 0.3 | S82: =D82*2 -> 562122 | T82: 81 | U82: 81 | V82: =IF(MOD(A82,2)=0,0,S82) -> 562122 | Z82: 130 | AA82: =Z82*E82/D82/4 -> 0.00936629415 | AE82: =ROUND(AA82+AE80,0) -> 90
A83: 82 | B83: 40 | D83: 308576 | E83: 81 | K83: 5194.362667 | M83: 4 | O83: 1.096799492 | P83: 0.3 | T83: 82 | U83: 0 | Z83: 910 | AA83: =D83*2 -> 617152
A84: 83 | B84: 40 | D84: 338446 | E84: 81 | K84: 5697.174333 | M84: 4 | O84: 1.095702121 | P84: 0.3 | S84: =D84*2 -> 676892 | T84: 83 | U84: 81 | V84: =IF(MOD(A84,2)=0,0,S84) -> 676892 | Z84: 150 | AA84: =Z84*E84/D84/4 -> 0.008974843845 | AE84: =ROUND(AA84+AE82,0) -> 90
A85: 84 | B85: 40 | D85: 370836 | E85: 81 | K85: 6242.406 | M85: 4 | O85: 1.094607859 | P85: 0.3 | T85: 84 | U85: 0 | Z85: 930 | AA85: =D85*2 -> 741672
A86: 85 | B86: 40 | D86: 405920 | E86: 91 | K86: 6832.986667 | M86: 4 | O86: 1.0935135 | P86: 0.3 | S86: =D86*2 -> 811840 | T86: 85 | U86: 91 | V86: =IF(MOD(A86,2)=0,0,S86) -> 811840 | Z86: 150 | AA86: =Z86*E86/D86/4 -> 0.008406828932 | AE86: =ROUND(AA86+AE84,0) -> 90
A87: 86 | B87: 40 | D87: 443879 | E87: 91 | K87: 7471.963167 | M87: 4 | O87: 1.09241933 | P87: 0.3 | T87: 86 | U87: 0 | Z87: 950 | AA87: =D87*2 -> 887758
A88: 87 | B88: 40 | D88: 484902 | E88: 91 | K88: 8162.517 | M88: 4 | O88: 1.091327732 | P88: 0.3 | S88: =D88*2 -> 969804 | T88: 87 | U88: 91 | V88: =IF(MOD(A88,2)=0,0,S88) -> 969804 | Z88: 150 | AA88: =Z88*E88/D88/4 -> 0.007037504485 | AE88: =ROUND(AA88+AE86,0) -> 90
A89: 88 | B89: 40 | D89: 529187 | E89: 91 | K89: 8907.981167 | M89: 4 | O89: 1.090236533 | P89: 0.3 | T89: 88 | U89: 0 | Z89: 970 | AA89: =D89*2 -> 1058374
A90: 89 | B90: 40 | D90: 576939 | E90: 91 | K90: 9711.8065 | M90: 4 | O90: 1.089144606 | P90: 0.3 | S90: =D90*2 -> 1153878 | T90: 89 | U90: 91 | V90: =IF(MOD(A90,2)=0,0,S90) -> 1153878 | Z90: 150 | AA90: =Z90*E90/D90/4 -> 0.005914836751 | AE90: =ROUND(AA90+AE88,0) -> 90
A91: 90 | B91: 40 | D91: 628370 | E91: 91 | K91: 10577.56167 | M91: 4 | O91: 1.0880564 | P91: 0.3 | T91: 90 | U91: 0 | Z91: 990 | AA91: =D91*2 -> 1256740
A92: 91 | B92: 40 | D92: 683702 | E92: 91 | K92: 11508.98367 | M92: 4 | O92: 1.086967714 | P92: 0.3 | S92: =D92*2 -> 1367404 | T92: 91 | U92: 91 | V92: =IF(MOD(A92,2)=0,0,S92) -> 1367404 | Z92: 150 | AA92: =Z92*E92/D92/4 -> 0.004991209621 | AE92: =ROUND(AA92+AE90,0) -> 90
A93: 92 | B93: 40 | D93: 743162 | E93: 91 | K93: 12509.89367 | M93: 4 | O93: 1.085881679 | P93: 0.3 | T93: 92 | U93: 0 | Z93: 1010 | AA93: =D93*2 -> 1486324
A94: 93 | B94: 40 | D94: 806986 | E94: 91 | K94: 13584.26433 | M94: 4 | O94: 1.084795771 | P94: 0.3 | S94: =D94*2 -> 1613972 | T94: 93 | U94: 91 | V94: =IF(MOD(A94,2)=0,0,S94) -> 1613972 | Z94: 150 | AA94: =Z94*E94/D94/4 -> 0.004228697896 | AE94: =ROUND(AA94+AE92,0) -> 90
A95: 94 | B95: 40 | D95: 875415 | E95: 91 | K95: 14736.1525 | M95: 4 | O95: 1.083710012 | P95: 0.3 | T95: 94 | U95: 0 | Z95: 1030 | AA95: =D95*2 -> 1750830
A96: 95 | B96: 40 | D96: 948696 | E96: 101 | K96: 15969.716 | M96: 4 | O96: 1.082627101 | P96: 0.3 | S96: =D96*2 -> 1897392 | T96: 95 | U96: 101 | V96: =IF(MOD(A96,2)=0,0,S96) -> 1897392 | Z96: 150 | AA96: =Z96*E96/D96/4 -> 0.003992322093 | AE96: =ROUND(AA96+AE94,0) -> 90
A97: 96 | B97: 40 | D97: 1027084 | E97: 101 | K97: 17289.24733 | M97: 4 | O97: 1.08154445 | P97: 0.3 | T97: 96 | U97: 0 | Z97: 1050 | AA97: =D97*2 -> 2054168
A98: 97 | B98: 40 | D98: 1110837 | E98: 101 | K98: 18699.0895 | M98: 4 | O98: 1.08046275 | P98: 0.3 | S98: =D98*2 -> 2221674 | T98: 97 | U98: 101 | V98: =IF(MOD(A98,2)=0,0,S98) -> 2221674 | Z98: 150 | AA98: =Z98*E98/D98/4 -> 0.003409591146 | AE98: =ROUND(AA98+AE96,0) -> 90
A99: 98 | B99: 40 | D99: 1200218 | E99: 101 | K99: 20203.66967 | M99: 4 | O99: 1.079382246 | P99: 0.3 | T99: 98 | U99: 0 | Z99: 1070 | AA99: =D99*2 -> 2400436
A100: 99 | B100: 40 | D100: 1295494 | E100: 101 | K100: 21807.48233 | M100: 4 | O100: 1.078302949 | P100: 0.3 | S100: =D100*2 -> 2590988 | T100: 99 | U100: 101 | V100: =IF(MOD(A100,2)=0,0,S100) -> 2590988 | Z100: 150 | AA100: =Z100*E100/D100/4 -> 0.002923595169 | AE100: =ROUND(AA100+AE98,0) -> 90
A101: 100 | B101: 40 | D101: 1396935 | E101: 101 | K101: 23515.0725 | M101: 4 | O101: 1.077224781 | P101: 0.3 | T101: 100 | U101: =IF(MOD(A101,2)=0,0,E101) -> 0 | Z101: 1090 | AA101: =D101*2 -> 2793870
A102: 101 | B102: 40 | D102: 1504813 | E102: 101 | K102: 25331.01883 | M102: 4 | O102: 1.076147003 | P102: 0.3 | S102: =D102*2 -> 3009626 | T102: 101 | U102: 101 | V102: =IF(MOD(A102,2)=0,0,S102) -> 3009626 | Z102: 150 | AA102: =Z102*E102/D102/4 -> 0.00251692403 | AE102: =ROUND(AA102+AE100,0) -> 90
A103: 102 | B103: 40 | D103: 1619400 | E103: 101 | K103: 27259.9 | M103: 4 | O103: 1.075071014 | P103: 0.3 | T103: 102 | U103: 0 | Z103: 1110 | AA103: =D103*2 -> 3238800
A104: 103 | B104: 40 | D104: 1740970 | E104: 101 | K104: 29306.32833 | M104: 4 | O104: 1.073996106 | P104: 0.3 | S104: =D104*2 -> 3481940 | T104: 103 | U104: 101 | V104: =IF(MOD(A104,2)=0,0,S104) -> 3481940 | Z104: 150 | AA104: =Z104*E104/D104/4 -> 0.002175511353 | AE104: =ROUND(AA104+AE102,0) -> 90
A105: 104 | B105: 40 | D105: 1869795 | E105: 101 | K105: 31474.8825 | M105: 4 | O105: 1.072921898 | P105: 0.3 | T105: 104 | U105: 0 | Z105: 1130 | AA105: =D105*2 -> 3739590
A106: 105 | B106: 40 | D106: 2006144 | E106: 111 | K106: 33770.09067 | M106: 4 | O106: 1.071849279 | P106: 0.3 | S106: =D106*2 -> 4012288 | T106: 105 | U106: 111 | V106: =IF(MOD(A106,2)=0,0,S106) -> 4012288 | Z106: 150 | AA106: =Z106*E106/D106/4 -> 0.002074875981 | AE106: =ROUND(AA106+AE104,0) -> 90
A107: 106 | B107: 40 | D107: 2150284 | E107: 111 | K107: 36196.44733 | M107: 4 | O107: 1.070777162 | P107: 0.3 | T107: 106 | U107: 0 | Z107: 1150 | AA107: =D107*2 -> 4300568
A108: 107 | B108: 40 | D108: 2302475 | E108: 111 | K108: 38758.32917 | M108: 4 | O108: 1.069706729 | P108: 0.3 | S108: =D108*2 -> 4604950 | T108: 107 | U108: 111 | V108: =IF(MOD(A108,2)=0,0,S108) -> 4604950 | Z108: 150 | AA108: =Z108*E108/D108/4 -> 0.001807837219 | AE108: =ROUND(AA108+AE106,0) -> 90
A109: 108 | B109: 40 | D109: 2462973 | E109: 111 | K109: 41460.0455 | M109: 4 | O109: 1.068636968 | P109: 0.3 | T109: 108 | U109: 0 | Z109: 1170 | AA109: =D109*2 -> 4925946
A110: 109 | B110: 40 | D110: 2632024 | E110: 111 | K110: 44305.73733 | M110: 4 | O110: 1.067568153 | P110: 0.3 | S110: =D110*2 -> 5264048 | T110: 109 | U110: 111 | V110: =IF(MOD(A110,2)=0,0,S110) -> 5264048 | Z110: 150 | AA110: =Z110*E110/D110/4 -> 0.00158148254 | AE110: =ROUND(AA110+AE108,0) -> 90
A111: 110 | B111: 40 | D111: 2809865 | E111: 111 | K111: 47299.39417 | M111: 4 | O111: 1.066500704 | P111: 0.3 | T111: 110 | U111: 0 | Z111: 1190 | AA111: =D111*2 -> 5619730
A112: 111 | B112: 40 | D112: 2996723 | E112: 111 | K112: 50444.83717 | M112: 4 | O112: 1.065434143 | P112: 0.3 | S112: =D112*2 -> 5993446 | T112: 111 | U112: 111 | V112: =IF(MOD(A112,2)=0,0,S112) -> 5993446 | Z112: 150 | AA112: =Z112*E112/D112/4 -> 0.00138901727 | AE112: =ROUND(AA112+AE110,0) -> 90
A113: 112 | B113: 40 | D113: 3192811 | E113: 111 | K113: 53745.65183 | M113: 4 | O113: 1.064368671 | P113: 0.3 | T113: 112 | U113: 0 | Z113: 1210 | AA113: =D113*2 -> 6385622
A114: 113 | B114: 40 | D114: 3398328 | E114: 111 | K114: 57205.188 | M114: 4 | O114: 1.063304366 | P114: 0.3 | S114: =D114*2 -> 6796656 | T114: 113 | U114: 111 | V114: =IF(MOD(A114,2)=0,0,S114) -> 6796656 | Z114: 150 | AA114: =Z114*E114/D114/4 -> 0.001224867052 | AE114: =ROUND(AA114+AE112,0) -> 90
A115: 114 | B115: 40 | D115: 3613457 | E115: 111 | K115: 60826.52617 | M115: 4 | O115: 1.062240951 | P115: 0.3 | T115: 114 | U115: 0 | Z115: 1230 | AA115: =D115*2 -> 7226914
A116: 115 | B116: 40 | D116: 3838362 | E116: 121 | K116: 64612.427 | M116: 4 | O116: 1.061178701 | P116: 0.3 | S116: =D116*2 -> 7676724 | T116: 115 | U116: 121 | V116: =IF(MOD(A116,2)=0,0,S116) -> 7676724 | Z116: 150 | AA116: =Z116*E116/D116/4 -> 0.001182144884 | AE116: =ROUND(AA116+AE114,0) -> 90
A117: 116 | B117: 40 | D117: 4073188 | E117: 121 | K117: 68565.33133 | M117: 4 | O117: 1.06011753 | P117: 0.3 | T117: 116 | U117: 0 | Z117: 1250 | AA117: =D117*2 -> 8146376
A118: 117 | B118: 40 | D118: 4318058 | E118: 121 | K118: =K117*O117 -> 72687.30967 | M118: 4 | O118: 1.059057567 | P118: 0.3 | S118: =D118*2 -> 8636116 | T118: 117 | U118: 121 | V118: =IF(MOD(A118,2)=0,0,S118) -> 8636116 | Z118: 150 | AA118: =Z118*E118/D118/4 -> 0.001050819605 | AE118: =ROUND(AA118+AE116,0) -> 90
A119: 118 | B119: 40 | D119: 4573072 | E119: 121 | K119: 76980.04533 | M119: 4 | O119: 1.057998431 | P119: 0.3 | T119: 118 | U119: 0 | Z119: 1270 | AA119: =D119*2 -> 9146144
A120: 119 | B120: 40 | D120: 4838303 | E120: 121 | K120: 81444.76717 | M120: 4 | O120: 1.056940419 | P120: 0.3 | S120: =D120*2 -> 9676606 | T120: 119 | U120: 121 | V120: =IF(MOD(A120,2)=0,0,S120) -> 9676606 | Z120: 150 | AA120: =Z120*E120/D120/4 -> 0.0009378288214 | AE120: =ROUND(AA120+AE118,0) -> 90
A121: 120 | B121: 40 | D121: 5113798 | E121: 121 | K121: 86082.26633 | M121: 4 | O121: 1.055883514 | P121: 0.3 | T121: 120 | U121: 0 | Z121: 1290 | AA121: =D121*2 -> 10227596
A122: 121 | B122: 40 | D122: 5399575 | E122: 121 | K122: 90892.84583 | M122: 4 | O122: 1.054827648 | P122: 0.3 | S122: =D122*2 -> 10799150 | T122: 121 | U122: 121 | V122: =IF(MOD(A122,2)=0,0,S122) -> 10799150 | Z122: 150 | AA122: =Z122*E122/D122/4 -> 0.000840343916 | AE122: =ROUND(AA122+AE120,0) -> 90
A123: 122 | B123: 40 | D123: 5695621 | E123: 121 | K123: 95876.28683 | M123: 4 | O123: 1.053772714 | P123: 0.3 | T123: 122 | U123: 0 | Z123: 1310 | AA123: =D123*2 -> 11391242
A124: 123 | B124: 40 | D124: 6001890 | E124: 121 | K124: 101031.815 | M124: 4 | O124: 1.05271906 | P124: 0.3 | S124: =D124*2 -> 12003780 | T124: 123 | U124: 121 | V124: =IF(MOD(A124,2)=0,0,S124) -> 12003780 | Z124: 150 | AA124: =Z124*E124/D124/4 -> 0.0007560118563 | AE124: =ROUND(AA124+AE122,0) -> 90
A125: 124 | B125: 40 | D125: 6318304 | E125: 121 | K125: 106358.1173 | M125: 4 | O125: 1.051666238 | P125: 0.3 | T125: 124 | U125: 0 | Z125: 1330 | AA125: =D125*2 -> 12636608
A126: 125 | B126: 40 | D126: 6644747 | E126: 131 | K126: 111853.2412 | M126: 4 | O126: 1.050614568 | P126: 0.3 | S126: =D126*2 -> 13289494 | T126: 125 | U126: 131 | V126: =IF(MOD(A126,2)=0,0,S126) -> 13289494 | Z126: 150 | AA126: =Z126*E126/D126/4 -> 0.0007393058005 | AE126: =ROUND(AA126+AE124,0) -> 90
A127: 126 | B127: 40 | D127: 6981068 | E127: 131 | K127: 117514.6447 | M127: 4 | O127: 1.04956405 | P127: 0.3 | T127: 126 | U127: 0 | Z127: 1350 | AA127: =D127*2 -> 13962136
A128: 127 | B128: 40 | D128: 7327078 | E128: 131 | K128: 123339.1463 | M128: 4 | O128: 1.048514428 | P128: 0.3 | S128: =D128*2 -> 14654156 | T128: 127 | U128: 131 | V128: =IF(MOD(A128,2)=0,0,S128) -> 14654156 | Z128: 150 | AA128: =Z128*E128/D128/4 -> 0.0006704582645 | AE128: =ROUND(AA128+AE126,0) -> 90
A129: 128 | B129: 40 | D129: 7682547 | E129: 131 | K129: 129322.8745 | M129: 4 | O129: 1.047465899 | P129: 0.3 | T129: 128 | U129: 0 | Z129: 1370 | AA129: =D129*2 -> 15365094
A130: 129 | B130: 40 | D130: 8047206 | E130: 131 | K130: 135461.301 | M130: 4 | O130: 1.046418471 | P130: 0.3 | S130: =D130*2 -> 16094412 | T130: 129 | U130: 131 | V130: =IF(MOD(A130,2)=0,0,S130) -> 16094412 | Z130: 200 | AA130: =Z130*E130/D130/4 -> 0.0008139471016 | AE130: =ROUND(AA130+AE128,0) -> 90
A131: 130 | B131: 40 | D131: 8420745 | E131: =ROUND(D131/B131/K131*M131*(1+ROUND(A131/10,0)*$Q$2)/3,0) -> 131 | K131: 141749.2075 | M131: 4 | O131: 1.045371995 | P131: 0.3 | T131: 130 | U131: 0 | Z131: 1390 | AA131: =D131*2 -> 16841490
A132: 131 | B132: 40 | D132: 8802811 | E132: 131 | K132: 148180.6518 | M132: 4 | O132: 1.044326636 | P132: 0.3 | S132: =D132*2 -> 17605622 | T132: 131 | U132: 131 | V132: =IF(MOD(A132,2)=0,0,S132) -> 17605622 | Z132: 200 | AA132: =Z132*E132/D132/4 -> 0.0007440804988 | AE132: =ROUND(AA132+AE130,0) -> 90
A133: 132 | B133: 40 | D133: 9193010 | E133: 131 | K133: 154749.0017 | M133: 4 | O133: 1.043282342 | P133: 0.3 | T133: 132 | U133: =IF(MOD(A133,2)=0,0,E133) -> 0 | Z133: 1410 | AA133: =D133*2 -> 18386020
A134: 133 | B134: 40 | D134: 9590905 | E134: 131 | K134: 161446.9008 | M134: 4 | O134: 1.04223908 | P134: 0.3 | S134: =D134*2 -> 19181810 | T134: 133 | U134: 131 | V134: =IF(MOD(A134,2)=0,0,S134) -> 19181810 | Z134: 200 | AA134: =Z134*E134/D134/4 -> 0.0006829386799 | AE134: =ROUND(AA134+AE132,0) -> 90
A135: 134 | B135: 40 | D135: 9996016 | E135: 131 | K135: 168266.2693 | M135: 4 | O135: 1.041196813 | P135: 0.3 | T135: 134 | U135: 0 | Z135: 1430 | AA135: =D135*2 -> 19992032
A136: 135 | B136: 40 | D136: 10407820 | E136: 141 | K136: 175198.3033 | M136: 4 | O136: 1.040155575 | P136: 0.3 | S136: =D136*2 -> 20815640 | T136: 135 | U136: 141 | V136: =IF(MOD(A136,2)=0,0,S136) -> 20815640 | Z136: 200 | AA136: =Z136*E136/D136/4 -> 0.0006773752813 | AE136: =ROUND(AA136+AE134,0) -> 90
A137: 136 | B137: 40 | D137: 10825752 | E137: 141 | K137: 182233.492 | M137: 4 | O137: 1.039115435 | P137: 0.3 | T137: 136 | U137: 0 | Z137: 1450 | AA137: =D137*2 -> 21651504
A138: 137 | B138: 40 | D138: 11249206 | E138: 141 | K138: 189361.6343 | M138: 4 | O138: 1.038076376 | P138: 0.3 | S138: =D138*2 -> 22498412 | T138: 137 | U138: 141 | V138: =IF(MOD(A138,2)=0,0,S138) -> 22498412 | Z138: 200 | AA138: =Z138*E138/D138/4 -> 0.0006267108985 | AE138: =ROUND(AA138+AE136,0) -> 90
A139: 138 | B139: 40 | D139: 11677535 | E139: 141 | K139: 196571.8392 | M139: 4 | O139: 1.037038296 | P139: 0.3 | T139: 138 | U139: 0 | Z139: 1470 | AA139: =D139*2 -> 23355070
A140: 139 | B140: 40 | D140: 12110051 | E140: 141 | K140: 203852.5252 | M140: 4 | O140: 1.036001252 | P140: 0.3 | S140: =D140*2 -> 24220102 | T140: 139 | U140: 141 | V140: =IF(MOD(A140,2)=0,0,S140) -> 24220102 | Z140: 200 | AA140: =Z140*E140/D140/4 -> 0.0005821610495 | AE140: =ROUND(AA140+AE138,0) -> 90
A141: 140 | B141: 40 | D141: 12546028 | E141: 141 | K141: 211191.4713 | M141: 4 | O141: 1.03496525 | P141: 0.3 | T141: 140 | U141: 0 | Z141: 1490 | AA141: =D141*2 -> 25092056
A142: 141 | B142: 40 | D142: 12984703 | E142: 141 | K142: 218575.8338 | M142: 4 | O142: 1.033930233 | P142: 0.3 | S142: =D142*2 -> 25969406 | T142: 141 | U142: 141 | V142: =IF(MOD(A142,2)=0,0,S142) -> 25969406 | Z142: 200 | AA142: =Z142*E142/D142/4 -> 0.0005429465734 | AE142: =ROUND(AA142+AE140,0) -> 90
A143: 142 | B143: 40 | D143: 13425277 | E143: 141 | K143: 225992.1628 | M143: 4 | O143: 1.032896304 | P143: 0.3 | T143: 142 | U143: 0 | Z143: 1510 | AA143: =D143*2 -> 26850554
A144: 143 | B144: 40 | D144: 13866919 | E144: 141 | K144: 233426.4698 | M144: 4 | O144: 1.031863459 | P144: 0.3 | S144: =D144*2 -> 27733838 | T144: 143 | U144: 141 | V144: =IF(MOD(A144,2)=0,0,S144) -> 27733838 | Z144: 200 | AA144: =Z144*E144/D144/4 -> 0.00050840421 | AE144: =ROUND(AA144+AE142,0) -> 90
A145: 144 | B145: 40 | D145: 14308767 | E145: 141 | K145: 240864.2445 | M145: 4 | O145: =D146/D145 -> 1.030831587 | P145: 0.3 | T145: 144 | U145: 0 | Z145: 1530 | AA145: =D145*2 -> 28617534
A146: 145 | B146: 40 | D146: 14749929 | E146: 150 | K146: 248290.4715 | M146: 4 | O146: 1.029800754 | P146: 0.3 | S146: =D146*2 -> 29499858 | T146: 145 | U146: 150 | V146: =IF(MOD(A146,2)=0,0,S146) -> 29499858 | Z146: 200 | AA146: =Z146*E146/D146/4 -> 0.0005084770239 | AE146: =ROUND(AA146+AE144,0) -> 90
A147: 146 | B147: 40 | D147: 15189488 | E147: 150 | K147: 255689.7147 | M147: 4 | O147: 1.02877095 | P147: 0.3 | T147: 146 | U147: 0 | Z147: 1550 | AA147: =D147*2 -> 30378976
A148: 147 | B148: 40 | D148: 15626504 | E148: 150 | K148: 263046.1507 | M148: 4 | O148: 1.027742162 | P148: 0.3 | S148: =D148*2 -> 31253008 | T148: 147 | U148: 150 | V148: =IF(MOD(A148,2)=0,0,S148) -> 31253008 | Z148: 200 | AA148: =Z148*E148/D148/4 -> 0.0004799538016 | AE148: =ROUND(AA148+AE146,0) -> 90
A149: 148 | B149: 40 | D149: 16060017 | E149: 150 | K149: 270343.6195 | M149: 4 | O149: 1.026714418 | P149: 0.3 | T149: 148 | U149: 0 | Z149: 1570 | AA149: =D149*2 -> 32120034
A150: 149 | B150: 40 | D150: 16489051 | E150: 150 | K150: 277565.6918 | M150: 4 | O150: 1.025687712 | P150: 0.3 | S150: =D150*2 -> 32978102 | T150: 149 | U150: 150 | V150: =IF(MOD(A150,2)=0,0,S150) -> 32978102 | Z150: 200 | AA150: =Z150*E150/D150/4 -> 0.0004548472802 | AE150: =ROUND(AA150+AE148,0) -> 90
A151: 150 | B151: 40 | D151: 16912617 | E151: 150 | K151: 284695.7195 | M151: 4 | O151: 1.024662002 | P151: 0.3 | T151: 150 | U151: 0 | Z151: 1590 | AA151: =D151*2 -> 33825234
A152: 151 | B152: 40 | D152: 17329716 | E152: 150 | K152: 291716.886 | M152: 4 | O152: 1.023637375 | P152: 0.3 | S152: =D152*2 -> 34659432 | T152: 151 | U152: =IF(MOD(A152,2)=0,0,E152) -> 150 | V152: =IF(MOD(A152,2)=0,0,S152) -> 34659432 | Z152: 200 | AA152: =Z152*E152/D152/4 -> 0.0004327826261 | AE152: =ROUND(AA152+AE150,0) -> 90
A153: 152 | B153: 40 | D153: 17739345 | E153: 150 | K153: 298612.3075 | M153: 4 | O153: 1.022613744 | P153: 0.3 | T153: 152 | U153: 0 | AA153: =D153*2 -> 35478690
A154: 153 | B154: 40 | D154: 18140498 | E154: 150 | K154: 305365.0497 | M154: 4 | O154: 1.021591083 | P154: 0.3 | S154: =D154*2 -> 36280996 | T154: 153 | U154: 150 | V154: =IF(MOD(A154,2)=0,0,S154) -> 36280996 | Z154: 200 | AA154: =Z154*E154/D154/4 -> 0.0004134395869 | AE154: =ROUND(AA154+AE152,0) -> 90
A155: 154 | B155: 40 | D155: 18532171 | E155: 150 | K155: 311958.2118 | M155: 4 | O155: 1.020569527 | P155: 0.3 | T155: 154 | U155: 0 | AA155: =D155*2 -> 37064342
A156: 155 | B156: 40 | D156: 18913369 | E156: 160 | K156: 318375.0448 | M156: 4 | O156: 1.019548923 | P156: 0.3 | S156: =D156*2 -> 37826738 | T156: 155 | U156: 160 | V156: =IF(MOD(A156,2)=0,0,S156) -> 37826738 | Z156: 200 | AA156: =Z156*E156/D156/4 -> 0.0004229812256 | AE156: =ROUND(AA156+AE154,0) -> 90
A157: 156 | B157: 40 | D157: 19283105 | E157: 160 | K157: 324598.9342 | M157: 4 | O157: 1.018529381 | P157: 0.3 | T157: 156 | U157: 0 | AA157: =D157*2 -> 38566210
A158: 157 | B158: 40 | D158: 19640409 | E158: 160 | K158: 330613.5515 | M158: 4 | O158: 1.017510888 | P158: 0.3 | S158: =D158*2 -> 39280818 | T158: 157 | U158: 160 | V158: =IF(MOD(A158,2)=0,0,S158) -> 39280818 | Z158: 200 | AA158: =Z158*E158/D158/4 -> 0.0004073234931 | AE158: =ROUND(AA158+AE156,0) -> 90
A159: 158 | B159: 40 | D159: 19984330 | E159: 160 | K159: 336402.8883 | M159: 4 | O159: 1.016493373 | P159: 0.3 | T159: 158 | U159: 0 | AA159: =D159*2 -> 39968660
A160: 159 | B160: 40 | D160: 20313939 | E160: 160 | K160: 341951.3065 | M160: 4 | O160: 1.01547686 | P160: 0.3 | S160: =D160*2 -> 40627878 | T160: 159 | U160: 160 | V160: =IF(MOD(A160,2)=0,0,S160) -> 40627878 | Z160: 200 | AA160: =Z160*E160/D160/4 -> 0.0003938182545 | AE160: =ROUND(AA160+AE158,0) -> 90
A161: 160 | B161: 40 | D161: 20628335 | E161: 160 | K161: 347243.6392 | M161: 4 | O161: 1.014461371 | P161: 0.3 | T161: 160 | U161: 0 | AA161: =D161*2 -> 41256670
A162: 161 | B162: 40 | D162: 20926649 | E162: 160 | K162: 352265.2582 | M162: 4 | O162: 1.013446921 | P162: 0.3 | S162: =D162*2 -> 41853298 | T162: 161 | U162: 160 | V162: =IF(MOD(A162,2)=0,0,S162) -> 41853298 | Z162: 200 | AA162: =Z162*E162/D162/4 -> 0.0003822876754 | AE162: =ROUND(AA162+AE160,0) -> 90
A163: 162 | B163: 40 | D163: 21208048 | E163: 160 | K163: 357002.1413 | M163: 4 | O163: 1.012433488 | P163: 0.3 | T163: 162 | U163: 0 | AA163: =D163*2 -> 42416096
A164: 163 | B164: 40 | D164: 21471738 | E164: 160 | K164: 361440.923 | M164: 4 | O164: 1.01142106 | P164: 0.3 | S164: =D164*2 -> 42943476 | T164: 163 | U164: 160 | V164: =IF(MOD(A164,2)=0,0,S164) -> 42943476 | Z164: 200 | AA164: =Z164*E164/D164/4 -> 0.0003725827877 | AE164: =ROUND(AA164+AE162,0) -> 90
A165: 164 | B165: 40 | D165: 21716968 | E165: 160 | K165: 365568.9613 | M165: 4 | O165: 1.010409602 | P165: 0.3 | T165: 164 | U165: 0 | AA165: =D165*2 -> 43433936
A166: 165 | B166: 40 | D166: 21943033 | E166: 170 | K166: 369374.3888 | M166: 4 | O166: 1.009904419 | P166: 0.3 | S166: =D166*2 -> 43886066 | T166: 165 | U166: 170 | V166: =IF(MOD(A166,2)=0,0,S166) -> 43886066 | Z166: 200 | AA166: =Z166*E166/D166/4 -> 0.0003873666872 | AE166: =ROUND(AA166+AE164,0) -> 90
A167: 166 | B167: 40 | D167: 22160366 | E167: 170 | K167: 373032.8277 | M167: 4 | O167: 1.009399484 | P167: 0.3 | T167: 166 | U167: 0 | AA167: =D167*2 -> 44320732
A168: 167 | B168: 40 | D168: 22368662 | E168: 170 | K168: 376539.1437 | M168: 4 | O168: 1.008894765 | P168: 0.3 | S168: =D168*2 -> 44737324 | T168: 167 | U168: 170 | V168: =IF(MOD(A168,2)=0,0,S168) -> 44737324 | Z168: 200 | AA168: =Z168*E168/D168/4 -> 0.0003799959068 | AE168: =ROUND(AA168+AE166,0) -> 90
A169: 168 | B169: 40 | D169: 22567626 | E169: 170 | K169: 379888.371 | M169: 4 | O169: 1.008390338 | P169: 0.3 | T169: 168 | U169: 0 | AA169: =D169*2 -> 45135252
A170: 169 | B170: 40 | D170: 22756976 | E170: 170 | K170: 383075.7627 | M170: 4 | O170: 1.007886109 | P170: 0.3 | S170: =D170*2 -> 45513952 | T170: 169 | U170: 170 | V170: =IF(MOD(A170,2)=0,0,S170) -> 45513952 | Z170: 200 | AA170: =Z170*E170/D170/4 -> 0.0003735118409 | AE170: =ROUND(AA170+AE168,0) -> 90
A171: 170 | B171: 40 | D171: 22936440 | E171: 170 | K171: 386096.74 | M171: 4 | O171: 1.007382183 | P171: 0.3 | T171: 170 | U171: 0 | AA171: =D171*2 -> 45872880
A172: 171 | B172: 40 | D172: 23105761 | E172: 170 | K172: 388946.9768 | M172: 4 | O172: 1.006878501 | P172: 0.3 | S172: =D172*2 -> 46211522 | T172: 171 | U172: 170 | V172: =IF(MOD(A172,2)=0,0,S172) -> 46211522 | Z172: 200 | AA172: =Z172*E172/D172/4 -> 0.0003678736225 | AE172: =ROUND(AA172+AE170,0) -> 90
A173: 172 | B173: 40 | D173: 23264694 | E173: 170 | K173: 391622.349 | M173: 4 | O173: 1.006375068 | P173: 0.3 | T173: 172 | U173: 0 | AA173: =D173*2 -> 46529388
A174: 173 | B174: 40 | D174: 23413008 | E174: 170 | K174: 394118.968 | M174: 4 | O174: 1.005871864 | P174: 0.3 | S174: =D174*2 -> 46826016 | T174: 173 | U174: 170 | V174: =IF(MOD(A174,2)=0,0,S174) -> 46826016 | Z174: 200 | AA174: =Z174*E174/D174/4 -> 0.0003630460469 | AE174: =ROUND(AA174+AE172,0) -> 90
A175: 174 | B175: 40 | D175: 23550486 | E175: 170 | K175: 396433.181 | M175: 4 | O175: 1.005368934 | P175: 0.3 | T175: 174 | U175: 0 | AA175: =D175*2 -> 47100972
A176: 175 | B176: 40 | D176: 23676927 | E176: 180 | K176: 398561.6045 | M176: 4 | O176: 1.006374307 | P176: 0.3 | S176: =D176*2 -> 47353854 | T176: 175 | U176: 180 | V176: =IF(MOD(A176,2)=0,0,S176) -> 47353854 | Z176: 200 | AA176: =Z176*E176/D176/4 -> 0.0003801168961 | AE176: =ROUND(AA176+AE174,0) -> 90
A177: 176 | B177: 40 | D177: 23827851 | E177: 180 | K177: 401102.1585 | M177: 4 | O177: 1.007380649 | P177: 0.3 | T177: 176 | U177: 0 | AA177: =D177*2 -> 47655702
A178: 177 | B178: 40 | D178: 24003716 | E178: 180 | K178: 404062.5527 | M178: 4 | O178: 1.008388035 | P178: 0.3 | S178: =D178*2 -> 48007432 | T178: 177 | U178: 180 | V178: =IF(MOD(A178,2)=0,0,S178) -> 48007432 | Z178: 200 | AA178: =Z178*E178/D178/4 -> 0.0003749419465 | AE178: =ROUND(AA178+AE176,0) -> 90
A179: 178 | B179: 40 | D179: 24205060 | E179: 180 | K179: 407451.8433 | M179: 4 | O179: 1.009396424 | P179: 0.3 | T179: 178 | U179: 0 | AA179: =D179*2 -> 48410120
A180: 179 | B180: 40 | D180: 24432501 | E180: 180 | K180: 411280.4335 | M180: 4 | O180: 1.010405852 | P180: 0.3 | S180: =D180*2 -> 48865002 | T180: 179 | U180: 180 | V180: =IF(MOD(A180,2)=0,0,S180) -> 48865002 | Z180: 200 | AA180: =Z180*E180/D180/4 -> 0.0003683617981 | AE180: =ROUND(AA180+AE178,0) -> 90
A181: 180 | B181: 40 | D181: 24686742 | E181: 180 | K181: 415560.157 | M181: 4 | O181: 1.011416249 | P181: 0.3 | T181: 180 | U181: 0 | AA181: =D181*2 -> 49373484
A182: 181 | B182: 40 | D182: 24968572 | E182: 180 | K182: =K181*O181 -> 420304.2953 | M182: 4 | O182: 1.012427663 | P182: 0.3 | S182: =D182*2 -> 49937144 | T182: 181 | U182: 180 | V182: =IF(MOD(A182,2)=0,0,S182) -> 49937144 | Z182: 200 | AA182: =Z182*E182/D182/4 -> 0.0003604531328 | AE182: =ROUND(AA182+AE180,0) -> 90
A183: 182 | B183: 40 | D183: 25278873 | E183: 180 | K183: 425527.6955 | M183: 4 | O183: 1.013440077 | P183: 0.3 | T183: 182 | U183: 0 | AA183: =D183*2 -> 50557746
A184: 183 | B184: 40 | D184: 25618623 | E184: 180 | K184: 431246.8205 | M184: 4 | O184: 1.014453509 | P184: 0.3 | S184: =D184*2 -> 51237246 | T184: 183 | U184: =IF(MOD(A184,2)=0,0,E184) -> 180 | V184: =IF(MOD(A184,2)=0,0,S184) -> 51237246 | Z184: 200 | AA184: =Z184*E184/D184/4 -> 0.0003513069379 | AE184: =ROUND(AA184+AE182,0) -> 90
A185: 184 | B185: 40 | D185: 25988902 | E185: 180 | K185: 437479.8503 | M185: 4 | O185: 1.015467987 | P185: 0.3 | T185: 184 | U185: 0 | AA185: =D185*2 -> 51977804
A186: 185 | B186: 40 | D186: 26390898 | E186: 190 | K186: 444246.783 | M186: 4 | O186: 1.016483448 | P186: 0.3 | S186: =D186*2 -> 52781796 | T186: 185 | U186: 190 | V186: =IF(MOD(A186,2)=0,0,S186) -> 52781796 | Z186: 200 | AA186: =Z186*E186/D186/4 -> 0.0003599725936 | AE186: =ROUND(AA186+AE184,0) -> 90
A187: 186 | B187: 40 | D187: 26825911 | E187: 190 | K187: 451569.5018 | M187: 4 | O187: 1.017499946 | P187: 0.3 | T187: 186 | U187: 0 | AA187: =D187*2 -> 53651822
A188: 187 | B188: 40 | D188: 27295363 | E188: 190 | K188: 459471.9438 | M188: 4 | O188: 1.018517431 | P188: 0.3 | S188: =D188*2 -> 54590726 | T188: 187 | U188: 190 | V188: =IF(MOD(A188,2)=0,0,S188) -> 54590726 | Z188: 200 | AA188: =Z188*E188/D188/4 -> 0.0003480444645 | AE188: =ROUND(AA188+AE186,0) -> 90
A189: 188 | B189: 40 | D189: 27800803 | E189: 190 | K189: 467980.1838 | M189: 4 | O189: 1.019535946 | P189: 0.3 | T189: 188 | U189: 0 | AA189: =D189*2 -> 55601606
A190: 189 | B190: 40 | D190: 28343918 | E190: 190 | K190: 477122.6197 | M190: 4 | O190: 1.020555486 | P190: 0.3 | S190: =D190*2 -> 56687836 | T190: 189 | U190: 190 | V190: =IF(MOD(A190,2)=0,0,S190) -> 56687836 | Z190: 200 | AA190: =Z190*E190/D190/4 -> 0.0003351689064 | AE190: =ROUND(AA190+AE188,0) -> 90
A191: 190 | B191: 40 | D191: 28926541 | E191: 190 | K191: 486930.1068 | M191: 4 | O191: 1.021576033 | P191: 0.3 | T191: 190 | U191: 0 | AA191: =D191*2 -> 57853082
A192: 191 | B192: 40 | D192: 29550661 | E192: 190 | K192: 497436.1268 | M192: 4 | O192: 1.022597599 | P192: 0.3 | S192: =D192*2 -> 59101322 | T192: 191 | U192: 190 | V192: =IF(MOD(A192,2)=0,0,S192) -> 59101322 | Z192: 200 | AA192: =Z192*E192/D192/4 -> 0.0003214818105 | AE192: =ROUND(AA192+AE190,0) -> 90
A193: 192 | B193: 40 | D193: 30218435 | E193: 190 | K193: 508676.9892 | M193: 4 | O193: 1.023620217 | P193: 0.3 | T193: 192 | U193: 0 | AA193: =D193*2 -> 60436870
A194: 193 | B194: 40 | D194: 30932201 | E194: 190 | K194: 520692.0502 | M194: 4 | O194: 1.024643833 | P194: 0.3 | S194: =D194*2 -> 61864402 | T194: 193 | U194: 190 | V194: =IF(MOD(A194,2)=0,0,S194) -> 61864402 | Z194: 200 | AA194: =Z194*E194/D194/4 -> 0.0003071233114 | AE194: =ROUND(AA194+AE192,0) -> 90
A195: 194 | B195: 40 | D195: 31694489 | E195: =ROUND(D195/B195/K195*M195*(1+ROUND(A195/10,0)*$Q$2)/3,0) -> 190 | K195: 533523.8982 | M195: 4 | O195: 1.025668469 | P195: 0.3 | T195: 194 | U195: 0 | AA195: =D195*2 -> 63388978
A196: 195 | B196: 40 | D196: 32508038 | E196: 200 | K196: 547218.6397 | M196: 4 | O196: 1.026694136 | P196: 0.3 | S196: =D196*2 -> 65016076 | T196: 195 | U196: 200 | V196: =IF(MOD(A196,2)=0,0,S196) -> 65016076 | Z196: 200 | AA196: =Z196*E196/D196/4 -> 0.0003076162271 | AE196: =ROUND(AA196+AE194,0) -> 90
A197: 196 | B197: 40 | D197: 33375812 | E197: 200 | K197: 561826.1687 | M197: 4 | O197: 1.027720824 | P197: 0.3 | T197: 196 | U197: 0 | AA197: =D197*2 -> 66751624
A198: 197 | B198: 40 | D198: 34301017 | E198: 200 | K198: 577400.4528 | M198: 4 | O198: 1.028748565 | P198: 0.3 | S198: =D198*2 -> 68602034 | T198: 197 | U198: 200 | V198: =IF(MOD(A198,2)=0,0,S198) -> 68602034 | Z198: 200 | AA198: =Z198*E198/D198/4 -> 0.0002915365454 | AE198: =ROUND(AA198+AE196,0) -> 90
A199: 198 | B199: 40 | D199: 35287122 | E199: 200 | K199: 593999.887 | M199: 4 | O199: 1.029777294 | P199: 0.3 | T199: 198 | U199: 0 | AA199: =D199*2 -> 70574244
A200: 199 | B200: 40 | D200: 36337877 | E200: 200 | K200: 611687.5962 | M200: 4 | O200: 1.030807083 | P200: 0.3 | S200: =D200*2 -> 72675754 | T200: 199 | U200: 200 | V200: =IF(MOD(A200,2)=0,0,S200) -> 72675754 | Z200: 200 | AA200: =Z200*E200/D200/4 -> 0.0002751949433 | AE200: =ROUND(AA200+AE198,0) -> 90
... 105 more rows
